{"text_format":"1","workbook":"xlsx","n_sheets":2,"sheets":["Bilag 9.1","Ark1"],"not_rendered":{"charts":0,"images":1,"macros":0,"external_links":0,"defined_names":4,"comments":1,"pivot_tables":0},"unopened":[],"bounds":{"document_bytes":16777216,"sheet_cells":100000,"rows_first":2000,"rows_last":500,"rows_between":2000,"halvings":0,"cell_chars":16384,"cell_head_chars":4096},"cells_cut":0,"cells_raw":0,"read":"whole","date_system":"1900"}

{"sheet":"Bilag 9.1","index":0,"n_rows":1298,"n_cols":21,"rows_kept":1298,"cut":false,"hidden":false,"merged":[[18,0,18,6],[17,0,17,6],[14,2,14,4],[6,3,6,9],[14,8,14,9],[10,1,10,9],[25,0,25,1],[25,2,25,3],[25,5,25,6],[28,5,28,6],[26,0,26,1],[28,0,28,1],[27,0,27,1],[27,2,27,3],[20,0,20,6],[21,0,21,9],[19,3,19,6],[0,7,0,9],[11,0,11,1],[3,4,3,8],[12,0,12,1],[14,5,14,7],[13,2,13,3],[14,0,14,1],[12,2,12,9],[13,0,13,1],[11,2,11,9],[13,5,13,9],[16,0,16,6],[19,0,19,2],[41,5,41,9],[29,7,29,8],[41,0,41,3],[26,5,26,6],[34,5,34,9],[37,7,37,9],[26,2,26,3],[28,2,28,3],[36,7,36,9],[35,7,35,9],[39,5,39,9],[31,1,31,4],[32,1,32,4]]}
[null,null,null,null,null,null,null,"Standard bilag 9.1"]
[]
[]
[null,null,null,null,"Udbetalings bilag nr."]
[null,null,null,null,null,null,null,"Bogføringsdato:",null,"    /    /"]
[]
["I forbindelse med:"]
["er der d.d. udbetalt nedenstående beløb til:"]
[]
[]
[null,"Cpr.nr./CVR nr. skal oplyses ved honorar udbetaling"]
["Navn:"]
["Adresse:"]
["Post nr.:  ",null,null,null,"By:",{"$f":"IF(C14=\"\",\"\",VLOOKUP(C14,T44:U1298,2,FALSE))","v":""}]
["CPR nr.: ",null,null,null,null,"eller CVR nr.:"]
[null,null,null,null,null,null,null,"Konto","Aktivitetskode","Beløb"]
["Honorar:",null,null,null,null,null,null,3234]
["Telefon:",null,null,null,null,null,null,2610]
["Kontorhold:",null,null,null,null,null,null,2545]
["Diverse (specificeret):"]
["Befordring ( tog / bus mv. ) iflg. vedlagte bilag:",null,null,null,null,null,null,2835]
["Kilometergodtgørelse til frivillige ved kørsel i egen bil fra 1/1-2025:"]
["Maksimal godtgørelse efter statens laveste takst: kr. 2,23 pr. kørt km. Ellers op til 20.000 km, kr. 3,81 (ikke frivillige)"]
["Kørsel på egen cykel, knallert eller EU-knallert kr. 0,63 pr. km."]
["Nedenstående felter skal udfyldes iflg. bekendtgørelse fra Skat nr. 173"]
["kørt fra vejnavn",null,"Postnr.",null,null,"km. sats",null,"Konto","Aktivitetskode","Beløb"]
[]
["kørt til vejnavn",null,"Postnr.",null,"km. I alt"]
[null,null,null,null,null,null,null,2830,null,{"$f":"F29*E30","v":0}]
[null,"Retur (sæt kryds)",null,{"$f":"IF(C30=\"x\",E29*2,E29*1)","v":0},{"$f":"IF(C31>1,D30*C31,D30*1)","v":0},null,null,"I alt udbetalt",null,{"$f":"IF(J17+J18+J19+J20+J21+J27+J29=0,\"\",J17+J18+J19+J20+J21+J27+J29)","v":""}]
["Ved gentagende besøg skriv antal gange"]
["Datoer"]
[]
[]
["Bestyrelsesnr.",null,null,5315,null,"Ovenstående beløb bedes indsat på min konto:"]
[null,null,null,null,null,"Bank:"]
[{"$f":"IF(D35=\"\",\"\",VLOOKUP(D35,nynylandogby,2,FALSE))","v":"Holbæk-Jernløse "},null,null,null,null,"Regnr:"]
[null,null,null,null,null,"Kontonr:"]
[]
[]
[]
["Ældre Sagen (stempel)",null,null,null,null,"Underskrift"]
[null,null,null,null,null,null,null,null,null,null,null,null,null,"Vælg nr","Udfyld Bestyrelsesnr."]
["Attestationsfelt - udfyldes af bestyrelsen",null,null,null,null,null,null,null,null,null,null,null,null,null,null,null,null,null,null,"Skriv Postnr","Udfyld Postnr"]
[null,null,null,null,null,null,null,null,null,null,null,null,null,1001,"Distrikt Nordjylland",1001,1,{"$f":"N45&\" \"&O45","v":"1001 Distrikt Nordjylland"}]
[null,null,null,null,null,null,null,null,null,null,null,null,null,1002,"Distrikt Midt-Vestjylland",1002,2,{"$f":"N46&\" \"&O46","v":"1002 Distrikt Midt-Vestjylland"},null,1000,"København K"]
[null,null,null,null,null,null,null,null,null,null,null,null,null,1003,"Distrikt Midt-Østjylland",1003,3,"1003 Distrikt Midt-Østjylland",null,1001,"København K"]
[null,null,null,null,null,null,null,null,null,null,null,null,null,1004,"Distrikt Syd-Midtjylland",1004,4,"1004 Distrikt Syd-Midtjylland",null,1002,"København K"]
[null,null,null,null,null,null,null,null,null,null,null,null,null,1005,"Distrikt Sdr. Jylland",1005,5,"1005 Distrikt Sdr. Jylland",null,1003,"København K"]
[null,null,null,null,null,null,null,null,null,null,null,null,null,1006,"Distrikt Fyn og Øer",1006,6,"1006 Distrikt Fyn og Øer",null,1004,"København K"]
[null,null,null,null,null,null,null,null,null,null,null,null,null,1007,"Distrikt Sydsjælland",1007,7,"1007 Distrikt Sydsjælland",null,1005,"København K"]
[null,null,null,null,null,null,null,null,null,null,null,null,null,1008,"Distrikt Midtsjælland",1008,8,"1008 Distrikt Midtsjælland",null,1006,"København K"]
[null,null,null,null,null,null,null,null,null,null,null,null,null,1009,"Distrikt Nordsjælland og Bornholm",1009,9,"1009 Distrikt Nordsjælland og Bornholm",null,1007,"København K"]
[null,null,null,null,null,null,null,null,null,null,null,null,null,1010,"Distrikt København",1010,10,"1010 Distrikt København",null,1008,"København K"]
[null,null,null,null,null,null,null,null,null,null,null,null,null,5101,"København ",5101,"101-00","5101 København ",null,1009,"København K"]
[null,null,null,null,null,null,null,null,null,null,null,null,null,5120,"Valby ",5120,"101-25","5120 Valby ",null,1010,"København K"]
[null,null,null,null,null,null,null,null,null,null,null,null,null,5122,"Brønshøj-Vanløse ",5122,"101-27","5122 Brønshøj-Vanløse ",null,1011,"København K"]
[null,null,null,null,null,null,null,null,null,null,null,null,null,5124,"Østerbro ",5124,"101-21","5124 Østerbro ",null,1012,"København K"]
[null,null,null,null,null,null,null,null,null,null,null,null,null,5126,"Sundby ",5126,"101-23","5126 Sundby ",null,1013,"København K"]
[null,null,null,null,null,null,null,null,null,null,null,null,null,5141,"Frederiksberg ",5141,147,"5141 Frederiksberg ",null,1014,"København K"]
[null,null,null,null,null,null,null,null,null,null,null,null,null,5151,"Ballerup ",5151,151,"5151 Ballerup ",null,1015,"København K"]
[null,null,null,null,null,null,null,null,null,null,null,null,null,5153,"Brøndby ",5153,153,"5153 Brøndby ",null,1016,"København K"]
[null,null,null,null,null,null,null,null,null,null,null,null,null,5157,"Gentofte",5157,157,"5157 Gentofte",null,1017,"København K"]
[null,null,null,null,null,null,null,null,null,null,null,null,null,5159,"Gladsaxe ",5159,159,"5159 Gladsaxe ",null,1018,"København K"]
[null,null,null,null,null,null,null,null,null,null,null,null,null,5161,"Glostrup ",5161,161,"5161 Glostrup ",null,1019,"København K"]
[null,null,null,null,null,null,null,null,null,null,null,null,null,5163,"Herlev ",5163,163,"5163 Herlev ",null,1020,"København K"]
[null,null,null,null,null,null,null,null,null,null,null,null,null,5165,"Albertslund ",5165,165,"5165 Albertslund ",null,1021,"København K"]
[null,null,null,null,null,null,null,null,null,null,null,null,null,5167,"Hvidovre ",5167,167,"5167 Hvidovre ",null,1022,"København K"]
[null,null,null,null,null,null,null,null,null,null,null,null,null,5169,"Høje Taastrup ",5169,169,"5169 Høje Taastrup ",null,1023,"København K"]
[null,null,null,null,null,null,null,null,null,null,null,null,null,5171,"Ledøje-Smørum ",5171,171,"5171 Ledøje-Smørum ",null,1024,"København K"]
[null,null,null,null,null,null,null,null,null,null,null,null,null,5173,"Lyngby-Tårbæk ",5173,173,"5173 Lyngby-Tårbæk ",null,1050,"København K"]
[null,null,null,null,null,null,null,null,null,null,null,null,null,5175,"Rødovre ",5175,175,"5175 Rødovre ",null,1051,"København K"]
[null,null,null,null,null,null,null,null,null,null,null,null,null,5177,"Dragør ",5177,155,"5177 Dragør ",null,1052,"København K"]
[null,null,null,null,null,null,null,null,null,null,null,null,null,5181,"Rudersdal syd ",5181,181,"5181 Rudersdal syd ",null,1053,"København K"]
[null,null,null,null,null,null,null,null,null,null,null,null,null,5183,"Ishøj ",5183,183,"5183 Ishøj ",null,1054,"København K"]
[null,null,null,null,null,null,null,null,null,null,null,null,null,5185,"Tårnby ",5185,185,"5185 Tårnby ",null,1055,"København K"]
[null,null,null,null,null,null,null,null,null,null,null,null,null,5187,"Vallensbæk ",5187,187,"5187 Vallensbæk ",null,1056,"København K"]
[null,null,null,null,null,null,null,null,null,null,null,null,null,5189,"Værløse ",5189,189,"5189 Værløse ",null,1057,"København K"]
[null,null,null,null,null,null,null,null,null,null,null,null,null,5201,"Allerød ",5201,201,"5201 Allerød ",null,1058,"København K"]
[null,null,null,null,null,null,null,null,null,null,null,null,null,5205,"Birkerød ",5205,205,"5205 Birkerød ",null,1059,"København K"]
[null,null,null,null,null,null,null,null,null,null,null,null,null,5207,"Farum ",5207,207,"5207 Farum ",null,1060,"København K"]
[null,null,null,null,null,null,null,null,null,null,null,null,null,5209,"Frederikssund ",5209,209,"5209 Frederikssund ",null,1061,"København K"]
[null,null,null,null,null,null,null,null,null,null,null,null,null,5211,"Frederiksværk ",5211,211,"5211 Frederiksværk ",null,1062,"København K"]
[null,null,null,null,null,null,null,null,null,null,null,null,null,5213,"Græsted-Gilleleje ",5213,213,"5213 Græsted-Gilleleje ",null,1063,"København K"]
[null,null,null,null,null,null,null,null,null,null,null,null,null,5215,"Helsinge ",5215,215,"5215 Helsinge ",null,1064,"København K"]
[null,null,null,null,null,null,null,null,null,null,null,null,null,5217,"Helsingør ",5217,217,"5217 Helsingør ",null,1065,"København K"]
[null,null,null,null,null,null,null,null,null,null,null,null,null,5219,"Hillerød-Skævinge ",5219,219,"5219 Hillerød-Skævinge ",null,1066,"København K"]
[null,null,null,null,null,null,null,null,null,null,null,null,null,5221,"Hundested ",5221,221,"5221 Hundested ",null,1067,"København K"]
[null,null,null,null,null,null,null,null,null,null,null,null,null,5223,"Hørsholm ",5223,223,"5223 Hørsholm ",null,1068,"København K"]
[null,null,null,null,null,null,null,null,null,null,null,null,null,5227,"Fredensborg",5227,210,{"$f":"N90&\" \"&O90","v":"5227 Fredensborg"},null,1069,"København K"]
[null,null,null,null,null,null,null,null,null,null,null,null,null,5229,"Skibby ",5229,229,"5229 Skibby ",null,1070,"København K"]
[null,null,null,null,null,null,null,null,null,null,null,null,null,5233,"Slangerup ",5233,233,"5233 Slangerup ",null,1071,"København K"]
[null,null,null,null,null,null,null,null,null,null,null,null,null,5235,"Stenløse ",5235,235,"5235 Stenløse ",null,1072,"København K"]
[null,null,null,null,null,null,null,null,null,null,null,null,null,5237,"Ølstykke ",5237,237,"5237 Ølstykke ",null,1073,"København K"]
[null,null,null,null,null,null,null,null,null,null,null,null,null,5251,"Bramsnæs ",5251,251,"5251 Bramsnæs ",null,1074,"København K"]
[null,null,null,null,null,null,null,null,null,null,null,null,null,5253,"Greve ",5253,253,"5253 Greve ",null,1091,"København K"]
[null,null,null,null,null,null,null,null,null,null,null,null,null,5255,"Gundsø ",5255,255,"5255 Gundsø ",null,1092,"København K"]
[null,null,null,null,null,null,null,null,null,null,null,null,null,5257,"Vallø ",5257,271,"5257 Vallø ",null,1093,"København K"]
[null,null,null,null,null,null,null,null,null,null,null,null,null,5259,"Køge ",5259,259,"5259 Køge ",null,1094,"København K"]
[null,null,null,null,null,null,null,null,null,null,null,null,null,5261,"Lejre ",5261,261,"5261 Lejre ",null,1095,"København K"]
[null,null,null,null,null,null,null,null,null,null,null,null,null,5263,"Ramsø ",5263,263,"5263 Ramsø ",null,1097,"København K"]
[null,null,null,null,null,null,null,null,null,null,null,null,null,5265,"Roskilde ",5265,265,"5265 Roskilde ",null,1098,"København K"]
[null,null,null,null,null,null,null,null,null,null,null,null,null,5267,"Skovbo ",5267,267,"5267 Skovbo ",null,1099,"København K"]
[null,null,null,null,null,null,null,null,null,null,null,null,null,5269,"Solrød ",5269,269,"5269 Solrød ",null,1100,"København K"]
[null,null,null,null,null,null,null,null,null,null,null,null,null,5271,"Hvalsø ",5271,257,"5271 Hvalsø ",null,1101,"København K"]
[null,null,null,null,null,null,null,null,null,null,null,null,null,5303,"Dianalund-Stenlille ",5303,303,"5303 Dianalund-Stenlille ",null,1102,"København K"]
[null,null,null,null,null,null,null,null,null,null,null,null,null,5305,"Dragsholm ",5305,305,"5305 Dragsholm ",null,1103,"København K"]
[null,null,null,null,null,null,null,null,null,null,null,null,null,5307,"Fuglebjerg ",5307,307,"5307 Fuglebjerg ",null,1104,"København K"]
[null,null,null,null,null,null,null,null,null,null,null,null,null,5309,"Gørlev ",5309,309,{"$f":"N109&\" \"&O109","v":"5309 Gørlev "},null,1105,"København K"]
[null,null,null,null,null,null,null,null,null,null,null,null,null,5311,"Hashøj ",5311,311,"5311 Hashøj ",null,1106,"København K"]
[null,null,null,null,null,null,null,null,null,null,null,null,null,5313,"Haslev ",5313,313,"5313 Haslev ",null,1107,"København K"]
[null,null,null,null,null,null,null,null,null,null,null,null,null,5315,"Holbæk-Jernløse ",5315,315,"5315 Holbæk-Jernløse ",null,1108,"København K"]
[null,null,null,null,null,null,null,null,null,null,null,null,null,5319,"Høng ",5319,319,"5319 Høng ",null,1109,"København K"]
[null,null,null,null,null,null,null,null,null,null,null,null,null,5323,"Kalundborg-Bjergsted-Hvidebæk ",5323,323,"5323 Kalundborg-Bjergsted-Hvidebæk ",null,1110,"København K"]
[null,null,null,null,null,null,null,null,null,null,null,null,null,5325,"Korsør ",5325,325,"5325 Korsør ",null,1111,"København K"]
[null,null,null,null,null,null,null,null,null,null,null,null,null,5327,"Nykøbing-Rørvig ",5327,327,"5327 Nykøbing-Rørvig ",null,1112,"København K"]
[null,null,null,null,null,null,null,null,null,null,null,null,null,5329,"Ringsted ",5329,329,"5329 Ringsted ",null,1113,"København K"]
[null,null,null,null,null,null,null,null,null,null,null,null,null,5331,"Skælskør ",5331,331,"5331 Skælskør ",null,1114,"København K"]
[null,null,null,null,null,null,null,null,null,null,null,null,null,5333,"Slagelse ",5333,333,"5333 Slagelse ",null,1115,"København K"]
[null,null,null,null,null,null,null,null,null,null,null,null,null,5335,"Sorø ",5335,335,"5335 Sorø ",null,1116,"København K"]
[null,null,null,null,null,null,null,null,null,null,null,null,null,5341,"Tornved-Svinninge ",5341,341,"5341 Tornved-Svinninge ",null,1117,"København K"]
[null,null,null,null,null,null,null,null,null,null,null,null,null,5343,"Trundholm ",5343,343,"5343 Trundholm ",null,1118,"København K"]
[null,null,null,null,null,null,null,null,null,null,null,null,null,5345,"Tølløse ",5345,345,"5345 Tølløse ",null,1119,"København K"]
[null,null,null,null,null,null,null,null,null,null,null,null,null,5351,"Fakse-Rønnede ",5351,351,"5351 Fakse-Rønnede ",null,1120,"København K"]
[null,null,null,null,null,null,null,null,null,null,null,null,null,5363,"Maribo-Holeby-Rødby ",5363,363,"5363 Maribo-Holeby-Rødby ",null,1121,"København K"]
[null,null,null,null,null,null,null,null,null,null,null,null,null,5365,"Møn ",5365,365,"5365 Møn ",null,1122,"København K"]
[null,null,null,null,null,null,null,null,null,null,null,null,null,5367,"Nakskov-Rudbjerg ",5367,367,"5367 Nakskov-Rudbjerg ",null,1123,"København K"]
[null,null,null,null,null,null,null,null,null,null,null,null,null,5369,"Nykøbing Falster-Sydfalster ",5369,369,"5369 Nykøbing Falster-Sydfalster ",null,1124,"København K"]
[null,null,null,null,null,null,null,null,null,null,null,null,null,5371,"Ravnsborg-Højreby ",5371,379,"5371 Ravnsborg-Højreby ",null,1125,"København K"]
[null,null,null,null,null,null,null,null,null,null,null,null,null,5373,"Næstved",5373,373,"5373 Næstved",null,1126,"København K"]
[null,null,null,null,null,null,null,null,null,null,null,null,null,5375,"Nørre Alslev ",5375,375,"5375 Nørre Alslev ",null,1127,"København K"]
[null,null,null,null,null,null,null,null,null,null,null,null,null,5377,"Præstø ",5377,377,"5377 Præstø ",null,1128,"København K"]
[null,null,null,null,null,null,null,null,null,null,null,null,null,5385,"Nysted ",5385,371,"5385 Nysted ",null,1129,"København K"]
[null,null,null,null,null,null,null,null,null,null,null,null,null,5387,"Sakskøbing ",5387,387,"5387 Sakskøbing ",null,1130,"København K"]
[null,null,null,null,null,null,null,null,null,null,null,null,null,5389,"Store Heddinge ",5389,389,"5389 Store Heddinge ",null,1131,"København K"]
[null,null,null,null,null,null,null,null,null,null,null,null,null,5391,"Stubbekøbing ",5391,391,"5391 Stubbekøbing ",null,1140,"København K"]
[null,null,null,null,null,null,null,null,null,null,null,null,null,5397,"Vordingborg-Langebæk ",5397,397,"5397 Vordingborg-Langebæk ",null,1145,"København K"]
[null,null,null,null,null,null,null,null,null,null,null,null,null,5399,"Suså-Holmegård ",5399,393,"5399 Suså-Holmegård ",null,1146,"København K"]
[null,null,null,null,null,null,null,null,null,null,null,null,null,5400,"Bornholm ",5400,400,"5400 Bornholm ",null,1147,"København K"]
[null,null,null,null,null,null,null,null,null,null,null,null,null,5421,"Vestfyn ",5421,421,"5421 Vestfyn ",null,1148,"København K"]
[null,null,null,null,null,null,null,null,null,null,null,null,null,5423,"Nordfyn ",5423,423,"5423 Nordfyn ",null,1149,"København K"]
[null,null,null,null,null,null,null,null,null,null,null,null,null,5427,"Egebjerg ",5427,427,"5427 Egebjerg ",null,1150,"København K"]
[null,null,null,null,null,null,null,null,null,null,null,null,null,5431,"Faaborg ",5431,431,"5431 Faaborg ",null,1151,"København K"]
[null,null,null,null,null,null,null,null,null,null,null,null,null,5439,"Kerteminde ",5439,439,"5439 Kerteminde ",null,1152,"København K"]
[null,null,null,null,null,null,null,null,null,null,null,null,null,5441,"Langeskov-Munkebo ",5441,441,"5441 Langeskov-Munkebo ",null,1153,"København K"]
[null,null,null,null,null,null,null,null,null,null,null,null,null,5443,"Ærø ",5443,443,"5443 Ærø ",null,1154,"København K"]
[null,null,null,null,null,null,null,null,null,null,null,null,null,5445,"Middelfart ",5445,445,"5445 Middelfart ",null,1155,"København K"]
[null,null,null,null,null,null,null,null,null,null,null,null,null,5449,"Nyborg-Ullerslev ",5449,449,"5449 Nyborg-Ullerslev ",null,1156,"København K"]
[null,null,null,null,null,null,null,null,null,null,null,null,null,5461,"Odense ",5461,461,"5461 Odense ",null,1157,"København K"]
[null,null,null,null,null,null,null,null,null,null,null,null,null,5473,"Midtfyn ",5473,473,"5473 Midtfyn ",null,1158,"København K"]
[null,null,null,null,null,null,null,null,null,null,null,null,null,5475,"Langeland ",5475,475,"5475 Langeland ",null,1159,"København K"]
[null,null,null,null,null,null,null,null,null,null,null,null,null,5479,"Svendborg-Gudme ",5479,479,"5479 Svendborg-Gudme ",null,1160,"København K"]
[null,null,null,null,null,null,null,null,null,null,null,null,null,5485,"Højfyn ",5485,485,"5485 Højfyn ",null,1161,"København K"]
[null,null,null,null,null,null,null,null,null,null,null,null,null,5495,"Ørbæk ",5495,495,"5495 Ørbæk ",null,1162,"København K"]
[null,null,null,null,null,null,null,null,null,null,null,null,null,5501,"Augustenborg-Sydals ",5501,501,"5501 Augustenborg-Sydals ",null,1163,"København K"]
[null,null,null,null,null,null,null,null,null,null,null,null,null,5503,"Bov ",5503,503,"5503 Bov ",null,1164,"København K"]
[null,null,null,null,null,null,null,null,null,null,null,null,null,5507,"Broager ",5507,507,"5507 Broager ",null,1165,"København K"]
[null,null,null,null,null,null,null,null,null,null,null,null,null,5511,"Rødding ",5511,527,"5511 Rødding ",null,1166,"København K"]
[null,null,null,null,null,null,null,null,null,null,null,null,null,5513,"Gråsten ",5513,513,"5513 Gråsten ",null,1167,"København K"]
[null,null,null,null,null,null,null,null,null,null,null,null,null,5515,"Haderslev ",5515,515,"5515 Haderslev ",null,1168,"København K"]
[null,null,null,null,null,null,null,null,null,null,null,null,null,5519,"Lundtoft ",5519,519,"5519 Lundtoft ",null,1169,"København K"]
[null,null,null,null,null,null,null,null,null,null,null,null,null,5521,"Løgumkloster-Bredebro-Skærbæk ",5521,521,"5521 Løgumkloster-Bredebro-Skærbæk ",null,1170,"København K"]
[null,null,null,null,null,null,null,null,null,null,null,null,null,5523,"Nordals ",5523,523,"5523 Nordals ",null,1171,"København K"]
[null,null,null,null,null,null,null,null,null,null,null,null,null,5525,"Nr. Rangstrup ",5525,525,"5525 Nr. Rangstrup ",null,1172,"København K"]
[null,null,null,null,null,null,null,null,null,null,null,null,null,5529,"Rødekro ",5529,529,"5529 Rødekro ",null,1173,"København K"]
[null,null,null,null,null,null,null,null,null,null,null,null,null,5537,"Sønderborg-Sundeved ",5537,537,"5537 Sønderborg-Sundeved ",null,1174,"København K"]
[null,null,null,null,null,null,null,null,null,null,null,null,null,5541,"Tønder-Højer ",5541,541,"5541 Tønder-Højer ",null,1175,"København K"]
[null,null,null,null,null,null,null,null,null,null,null,null,null,5543,"Vojens ",5543,543,"5543 Vojens ",null,1198,"København K"]
[null,null,null,null,null,null,null,null,null,null,null,null,null,5545,"Aabenraa ",5545,545,"5545 Aabenraa ",null,1199,"København K"]
[null,null,null,null,null,null,null,null,null,null,null,null,null,5547,"Gram ",5547,511,"5547 Gram ",null,1200,"København K"]
[null,null,null,null,null,null,null,null,null,null,null,null,null,5549,"Tinglev ",5549,539,"5549 Tinglev ",null,1201,"København K"]
[null,null,null,null,null,null,null,null,null,null,null,null,null,5551,"Grindsted ",5551,565,"5551 Grindsted ",null,1202,"København K"]
[null,null,null,null,null,null,null,null,null,null,null,null,null,5557,"Bramming ",5557,557,{"$f":"N173&\" \"&O173","v":"5557 Bramming "},null,1203,"København K"]
[null,null,null,null,null,null,null,null,null,null,null,null,null,5559,"Brørup ",5559,559,"5559 Brørup ",null,1204,"København K"]
[null,null,null,null,null,null,null,null,null,null,null,null,null,5561,"Esbjerg ",5561,561,"5561 Esbjerg ",null,1205,"København K"]
[null,null,null,null,null,null,null,null,null,null,null,null,null,5563,"Fanø ",5563,563,"5563 Fanø ",null,1206,"København K"]
[null,null,null,null,null,null,null,null,null,null,null,null,null,5565,"Billund ",5565,551,"5565 Billund ",null,1207,"København K"]
[null,null,null,null,null,null,null,null,null,null,null,null,null,5569,"Holsted ",5569,569,"5569 Holsted ",null,1208,"København K"]
[null,null,null,null,null,null,null,null,null,null,null,null,null,5571,"Ribe ",5571,571,"5571 Ribe ",null,1209,"København K"]
[null,null,null,null,null,null,null,null,null,null,null,null,null,5573,"Varde-Blåbjerg-Blåvandshuk ",5573,573,"5573 Varde-Blåbjerg-Blåvandshuk ",null,1210,"København K"]
[null,null,null,null,null,null,null,null,null,null,null,null,null,5575,"Vejen ",5575,575,"5575 Vejen ",null,1211,"København K"]
[null,null,null,null,null,null,null,null,null,null,null,null,null,5577,"Ølgod ",5577,577,"5577 Ølgod ",null,1212,"København K"]
[null,null,null,null,null,null,null,null,null,null,null,null,null,5579,"Helle ",5579,567,"5579 Helle ",null,1213,"København K"]
[null,null,null,null,null,null,null,null,null,null,null,null,null,5601,"Brædstrup ",5601,601,"5601 Brædstrup ",null,1214,"København K"]
[null,null,null,null,null,null,null,null,null,null,null,null,null,5603,"Børkop ",5603,603,"5603 Børkop ",null,1215,"København K"]
[null,null,null,null,null,null,null,null,null,null,null,null,null,5605,"Egtved ",5605,605,"5605 Egtved ",null,1216,"København K"]
[null,null,null,null,null,null,null,null,null,null,null,null,null,5607,"Fredericia ",5607,607,"5607 Fredericia ",null,1217,"København K"]
[null,null,null,null,null,null,null,null,null,null,null,null,null,5611,"Give ",5611,611,"5611 Give ",null,1218,"København K"]
[null,null,null,null,null,null,null,null,null,null,null,null,null,5613,"Hedensted ",5613,613,"5613 Hedensted ",null,1220,"København K"]
[null,null,null,null,null,null,null,null,null,null,null,null,null,5615,"Horsens",5615,615,"5615 Horsens",null,1221,"København K"]
[null,null,null,null,null,null,null,null,null,null,null,null,null,5619,"Juelsminde ",5619,619,"5619 Juelsminde ",null,1240,"København K"]
[null,null,null,null,null,null,null,null,null,null,null,null,null,5621,"Kolding ",5621,621,"5621 Kolding ",null,1248,"København K"]
[null,null,null,null,null,null,null,null,null,null,null,null,null,5625,"Nørre Snede ",5625,625,"5625 Nørre Snede ",null,1249,"København K"]
[null,null,null,null,null,null,null,null,null,null,null,null,null,5627,"Tørring-Uldum ",5627,627,"5627 Tørring-Uldum ",null,1250,"København K"]
[null,null,null,null,null,null,null,null,null,null,null,null,null,5631,"Vejle-Jelling ",5631,631,"5631 Vejle-Jelling ",null,1251,"København K"]
[null,null,null,null,null,null,null,null,null,null,null,null,null,5633,"Horsens nord ",5633,609,"5633 Horsens nord ",null,1252,"København K"]
[null,null,null,null,null,null,null,null,null,null,null,null,null,5651,"Aulum-Haderup-Trehøje ",5651,651,"5651 Aulum-Haderup-Trehøje ",null,1253,"København K"]
[null,null,null,null,null,null,null,null,null,null,null,null,null,5653,"Brande ",5653,653,"5653 Brande ",null,1254,"København K"]
[null,null,null,null,null,null,null,null,null,null,null,null,null,5657,"Herning ",5657,657,"5657 Herning ",null,1255,"København K"]
[null,null,null,null,null,null,null,null,null,null,null,null,null,5661,"Holstebro ",5661,661,"5661 Holstebro ",null,1256,"København K"]
[null,null,null,null,null,null,null,null,null,null,null,null,null,5663,"Ikast ",5663,663,"5663 Ikast ",null,1257,"København K"]
[null,null,null,null,null,null,null,null,null,null,null,null,null,5665,"Lemvig-Thyborøn-Harboøre ",5665,665,"5665 Lemvig-Thyborøn-Harboøre ",null,1258,"København K"]
[null,null,null,null,null,null,null,null,null,null,null,null,null,5667,"Ringkøbing-Holmsland ",5667,667,"5667 Ringkøbing-Holmsland ",null,1259,"København K"]
[null,null,null,null,null,null,null,null,null,null,null,null,null,5669,"Skjern-Tarm ",5669,669,"5669 Skjern-Tarm ",null,1260,"København K"]
[null,null,null,null,null,null,null,null,null,null,null,null,null,5671,"Struer-Thyholm ",5671,671,"5671 Struer-Thyholm ",null,1261,"København K"]
[null,null,null,null,null,null,null,null,null,null,null,null,null,5679,"Ulfborg-Vemb ",5679,679,"5679 Ulfborg-Vemb ",null,1262,"København K"]
[null,null,null,null,null,null,null,null,null,null,null,null,null,5681,"Videbæk ",5681,681,"5681 Videbæk ",null,1263,"København K"]
[null,null,null,null,null,null,null,null,null,null,null,null,null,5683,"Vinderup ",5683,683,"5683 Vinderup ",null,1264,"København K"]
[null,null,null,null,null,null,null,null,null,null,null,null,null,5685,"Åskov ",5685,685,"5685 Åskov ",null,1265,"København K"]
[null,null,null,null,null,null,null,null,null,null,null,null,null,5701,"Ebeltoft ",5701,701,"5701 Ebeltoft ",null,1266,"København K"]
[null,null,null,null,null,null,null,null,null,null,null,null,null,5703,"Rønde ",5703,739,"5703 Rønde ",null,1267,"København K"]
[null,null,null,null,null,null,null,null,null,null,null,null,null,5705,"Gjern ",5705,705,"5705 Gjern ",null,1268,"København K"]
[null,null,null,null,null,null,null,null,null,null,null,null,null,5707,"Grenaa ",5707,707,"5707 Grenaa ",null,1270,"København K"]
[null,null,null,null,null,null,null,null,null,null,null,null,null,5709,"Hammel ",5709,711,"5709 Hammel ",null,1271,"København K"]
[null,null,null,null,null,null,null,null,null,null,null,null,null,5711,"Galten ",5711,703,"5711 Galten ",null,1291,"København K"]
[null,null,null,null,null,null,null,null,null,null,null,null,null,5713,"Hadsten ",5713,709,"5713 Hadsten ",null,1295,"København K"]
[null,null,null,null,null,null,null,null,null,null,null,null,null,5715,"Hinnerup ",5715,713,"5715 Hinnerup ",null,1296,"København K"]
[null,null,null,null,null,null,null,null,null,null,null,null,null,5725,"Nørre Djurs ",5725,725,"5725 Nørre Djurs ",null,1298,"København K"]
[null,null,null,null,null,null,null,null,null,null,null,null,null,5727,"Odder ",5727,727,"5727 Odder ",null,1300,"København K"]
[null,null,null,null,null,null,null,null,null,null,null,null,null,5731,"Randers-Nørhald-Langå ",5731,731,"5731 Randers-Nørhald-Langå ",null,1301,"København K"]
[null,null,null,null,null,null,null,null,null,null,null,null,null,5733,"Rosenholm ",5733,733,"5733 Rosenholm ",null,1302,"København K"]
[null,null,null,null,null,null,null,null,null,null,null,null,null,5735,"Rougsø-Sønderhald",5735,735,"5735 Rougsø-Sønderhald",null,1303,"København K"]
[null,null,null,null,null,null,null,null,null,null,null,null,null,5737,"Ry ",5737,737,"5737 Ry ",null,1304,"København K"]
[null,null,null,null,null,null,null,null,null,null,null,null,null,5741,"Samsø ",5741,741,"5741 Samsø ",null,1305,"København K"]
[null,null,null,null,null,null,null,null,null,null,null,null,null,5743,"Silkeborg ",5743,743,"5743 Silkeborg ",null,1306,"København K"]
[null,null,null,null,null,null,null,null,null,null,null,null,null,5745,"Skanderborg ",5745,745,"5745 Skanderborg ",null,1307,"København K"]
[null,null,null,null,null,null,null,null,null,null,null,null,null,5747,"Assentoft ",5747,747,"5747 Assentoft ",null,1308,"København K"]
[null,null,null,null,null,null,null,null,null,null,null,null,null,5749,"Hørning ",5749,715,"5749 Hørning ",null,1309,"København K"]
[null,null,null,null,null,null,null,null,null,null,null,null,null,5750,"Århus Nord",5750,"751-02","5750 Århus Nord",null,1310,"København V"]
[null,null,null,null,null,null,null,null,null,null,null,null,null,5751,"Århus Midt ",5751,751,"5751 Århus Midt ",null,1311,"København K"]
[null,null,null,null,null,null,null,null,null,null,null,null,null,5752,"Århus Syd",5752,"751-04","5752 Århus Syd",null,1312,"København K"]
[null,null,null,null,null,null,null,null,null,null,null,null,null,5753,"Purhus ",5753,729,"5753 Purhus ",null,1313,"København K"]
[null,null,null,null,null,null,null,null,null,null,null,null,null,5755,"Mariager ",5755,719,"5755 Mariager ",null,1314,"København K"]
[null,null,null,null,null,null,null,null,null,null,null,null,null,5757,"Midtdjurs ",5757,721,"5757 Midtdjurs ",null,1315,"København K"]
[null,null,null,null,null,null,null,null,null,null,null,null,null,5759,"Them ",5759,749,"5759 Them ",null,1316,"København K"]
[null,null,null,null,null,null,null,null,null,null,null,null,null,5761,"Bjerringbro ",5761,761,"5761 Bjerringbro ",null,1317,"København K"]
[null,null,null,null,null,null,null,null,null,null,null,null,null,5763,"Fjends ",5763,763,{"$f":"N237&\" \"&O237","v":"5763 Fjends "},null,1318,"København K"]
[null,null,null,null,null,null,null,null,null,null,null,null,null,5771,"Kjellerup ",5771,771,"5771 Kjellerup ",null,1319,"København K"]
[null,null,null,null,null,null,null,null,null,null,null,null,null,5773,"Morsø ",5773,773,"5773 Morsø ",null,1320,"København K"]
[null,null,null,null,null,null,null,null,null,null,null,null,null,5775,"Ålestrup",5775,793,"5775 Ålestrup",null,1321,"København K"]
[null,null,null,null,null,null,null,null,null,null,null,null,null,5777,"Sallingsund ",5777,777,"5777 Sallingsund ",null,1322,"København K"]
[null,null,null,null,null,null,null,null,null,null,null,null,null,5779,"Skive-Spøttrup-Sundsøre ",5779,779,"5779 Skive-Spøttrup-Sundsøre ",null,1323,"København K"]
[null,null,null,null,null,null,null,null,null,null,null,null,null,5785,"Sydthy ",5785,785,"5785 Sydthy ",null,1324,"København K"]
[null,null,null,null,null,null,null,null,null,null,null,null,null,5787,"Thisted-Hanstholm ",5787,787,"5787 Thisted-Hanstholm ",null,1325,"København K"]
[null,null,null,null,null,null,null,null,null,null,null,null,null,5789,"Tjele ",5789,789,"5789 Tjele ",null,1326,"København K"]
[null,null,null,null,null,null,null,null,null,null,null,null,null,5791,"Viborg ",5791,791,"5791 Viborg ",null,1327,"København K"]
[null,null,null,null,null,null,null,null,null,null,null,null,null,5793,"Møldrup",5793,775,"5793 Møldrup",null,1328,"København K"]
[null,null,null,null,null,null,null,null,null,null,null,null,null,5801,"Arden ",5801,801,"5801 Arden ",null,1329,"København K"]
[null,null,null,null,null,null,null,null,null,null,null,null,null,5803,"Brovst ",5803,803,"5803 Brovst ",null,1330,"København K"]
[null,null,null,null,null,null,null,null,null,null,null,null,null,5805,"Brønderslev ",5805,805,"5805 Brønderslev ",null,1347,"København K"]
[null,null,null,null,null,null,null,null,null,null,null,null,null,5807,"Dronninglund ",5807,807,"5807 Dronninglund ",null,1349,"København K"]
[null,null,null,null,null,null,null,null,null,null,null,null,null,5809,"Farsø ",5809,809,"5809 Farsø ",null,1350,"København K"]
[null,null,null,null,null,null,null,null,null,null,null,null,null,5811,"Fjerritslev ",5811,811,"5811 Fjerritslev ",null,1352,"København K"]
[null,null,null,null,null,null,null,null,null,null,null,null,null,5813,"Frederikshavn-Læsø ",5813,813,"5813 Frederikshavn-Læsø ",null,1353,"København K"]
[null,null,null,null,null,null,null,null,null,null,null,null,null,5815,"Skørping ",5815,843,"5815 Skørping ",null,1354,"København K"]
[null,null,null,null,null,null,null,null,null,null,null,null,null,5817,"Hadsund ",5817,815,"5817 Hadsund ",null,1355,"København K"]
[null,null,null,null,null,null,null,null,null,null,null,null,null,5819,"Hirtshals ",5819,819,"5819 Hirtshals ",null,1356,"København K"]
[null,null,null,null,null,null,null,null,null,null,null,null,null,5821,"Hjørring ",5821,821,"5821 Hjørring ",null,1357,"København K"]
[null,null,null,null,null,null,null,null,null,null,null,null,null,5823,"Hobro",5823,823,"5823 Hobro",null,1358,"København K"]
[null,null,null,null,null,null,null,null,null,null,null,null,null,5827,"Løgstør ",5827,827,"5827 Løgstør ",null,1359,"København K"]
[null,null,null,null,null,null,null,null,null,null,null,null,null,5829,"Løkken-Vrå ",5829,829,"5829 Løkken-Vrå ",null,1360,"København K"]
[null,null,null,null,null,null,null,null,null,null,null,null,null,5831,"Nibe ",5831,831,"5831 Nibe ",null,1361,"København K"]
[null,null,null,null,null,null,null,null,null,null,null,null,null,5835,"Pandrup ",5835,835,"5835 Pandrup ",null,1362,"København K"]
[null,null,null,null,null,null,null,null,null,null,null,null,null,5839,"Sindal ",5839,839,"5839 Sindal ",null,1363,"København K"]
[null,null,null,null,null,null,null,null,null,null,null,null,null,5841,"Skagen ",5841,841,"5841 Skagen ",null,1364,"København K"]
[null,null,null,null,null,null,null,null,null,null,null,null,null,5845,"Støvring ",5845,845,"5845 Støvring ",null,1365,"København K"]
[null,null,null,null,null,null,null,null,null,null,null,null,null,5847,"Sæby ",5847,847,"5847 Sæby ",null,1366,"København K"]
[null,null,null,null,null,null,null,null,null,null,null,null,null,5851,"Aalborg ",5851,851,"5851 Aalborg ",null,1367,"København K"]
[null,null,null,null,null,null,null,null,null,null,null,null,null,5853,"Hals ",5853,817,"5853 Hals ",null,1368,"København K"]
[null,null,null,null,null,null,null,null,null,null,null,null,null,5861,"Aars ",5861,861,"5861 Aars ",null,1369,"København K"]
[null,null,null,null,null,null,null,null,null,null,null,null,null,5863,"Aabybro ",5863,849,"5863 Aabybro ",null,1370,"København K"]
[null,null,null,null,null,null,null,null,null,null,null,null,null,5865,"Sejlflod ",5865,837,"5865 Sejlflod ",null,1371,"København K"]
[null,null,null,null,null,null,null,null,null,null,null,null,null,{"$f":"\"\"","v":""},null,null,null,null,null,1399,"København K"]
[null,null,null,null,null,null,null,null,null,null,null,null,null,null,null,null,null,null,null,1400,"København K"]
[null,null,null,null,null,null,null,null,null,null,null,null,null,null,null,null,null,null,null,1401,"København K"]
[null,null,null,null,null,null,null,null,null,null,null,null,null,null,null,null,null,null,null,1402,"København K"]
[null,null,null,null,null,null,null,null,null,null,null,null,null,null,null,null,null,null,null,1403,"København K"]
[null,null,null,null,null,null,null,null,null,null,null,null,null,null,null,null,null,null,null,1404,"København K"]
[null,null,null,null,null,null,null,null,null,null,null,null,null,null,null,null,null,null,null,1405,"København K"]
[null,null,null,null,null,null,null,null,null,null,null,null,null,null,null,null,null,null,null,1406,"København K"]
[null,null,null,null,null,null,null,null,null,null,null,null,null,null,null,null,null,null,null,1407,"København K"]
[null,null,null,null,null,null,null,null,null,null,null,null,null,null,null,null,null,null,null,1408,"København K"]
[null,null,null,null,null,null,null,null,null,null,null,null,null,null,null,null,null,null,null,1409,"København K"]
[null,null,null,null,null,null,null,null,null,null,null,null,null,null,null,null,null,null,null,1410,"København K"]
[null,null,null,null,null,null,null,null,null,null,null,null,null,null,null,null,null,null,null,1411,"København K"]
[null,null,null,null,null,null,null,null,null,null,null,null,null,null,null,null,null,null,null,1412,"København K"]
[null,null,null,null,null,null,null,null,null,null,null,null,null,null,null,null,null,null,null,1413,"København K"]
[null,null,null,null,null,null,null,null,null,null,null,null,null,null,null,null,null,null,null,1414,"København K"]
[null,null,null,null,null,null,null,null,null,null,null,null,null,null,null,null,null,null,null,1415,"København K"]
[null,null,null,null,null,null,null,null,null,null,null,null,null,null,null,null,null,null,null,1416,"København K"]
[null,null,null,null,null,null,null,null,null,null,null,null,null,null,null,null,null,null,null,1417,"København K"]
[null,null,null,null,null,null,null,null,null,null,null,null,null,null,null,null,null,null,null,1418,"København K"]
[null,null,null,null,null,null,null,null,null,null,null,null,null,null,null,null,null,null,null,1419,"København K"]
[null,null,null,null,null,null,null,null,null,null,null,null,null,null,null,null,null,null,null,1420,"København K"]
[null,null,null,null,null,null,null,null,null,null,null,null,null,null,null,null,null,null,null,1421,"København K"]
[null,null,null,null,null,null,null,null,null,null,null,null,null,null,null,null,null,null,null,1422,"København K"]
[null,null,null,null,null,null,null,null,null,null,null,null,null,null,null,null,null,null,null,1423,"København K"]
[null,null,null,null,null,null,null,null,null,null,null,null,null,null,null,null,null,null,null,1424,"København K"]
[null,null,null,null,null,null,null,null,null,null,null,null,null,null,null,null,null,null,null,1425,"København K"]
[null,null,null,null,null,null,null,null,null,null,null,null,null,null,null,null,null,null,null,1426,"København K"]
[null,null,null,null,null,null,null,null,null,null,null,null,null,null,null,null,null,null,null,1427,"København K"]
[null,null,null,null,null,null,null,null,null,null,null,null,null,null,null,null,null,null,null,1428,"København K"]
[null,null,null,null,null,null,null,null,null,null,null,null,null,null,null,null,null,null,null,1429,"København K"]
[null,null,null,null,null,null,null,null,null,null,null,null,null,null,null,null,null,null,null,1430,"København K"]
[null,null,null,null,null,null,null,null,null,null,null,null,null,null,null,null,null,null,null,1431,"København K"]
[null,null,null,null,null,null,null,null,null,null,null,null,null,null,null,null,null,null,null,1432,"København K"]
[null,null,null,null,null,null,null,null,null,null,null,null,null,null,null,null,null,null,null,1433,"København K"]
[null,null,null,null,null,null,null,null,null,null,null,null,null,null,null,null,null,null,null,1448,"København K"]
[null,null,null,null,null,null,null,null,null,null,null,null,null,null,null,null,null,null,null,1449,"København K"]
[null,null,null,null,null,null,null,null,null,null,null,null,null,null,null,null,null,null,null,1450,"København K"]
[null,null,null,null,null,null,null,null,null,null,null,null,null,null,null,null,null,null,null,1451,"København K"]
[null,null,null,null,null,null,null,null,null,null,null,null,null,null,null,null,null,null,null,1452,"København K"]
[null,null,null,null,null,null,null,null,null,null,null,null,null,null,null,null,null,null,null,1453,"København K"]
[null,null,null,null,null,null,null,null,null,null,null,null,null,null,null,null,null,null,null,1454,"København K"]
[null,null,null,null,null,null,null,null,null,null,null,null,null,null,null,null,null,null,null,1455,"København K"]
[null,null,null,null,null,null,null,null,null,null,null,null,null,null,null,null,null,null,null,1456,"København K"]
[null,null,null,null,null,null,null,null,null,null,null,null,null,null,null,null,null,null,null,1457,"København K"]
[null,null,null,null,null,null,null,null,null,null,null,null,null,null,null,null,null,null,null,1458,"København K"]
[null,null,null,null,null,null,null,null,null,null,null,null,null,null,null,null,null,null,null,1459,"København K"]
[null,null,null,null,null,null,null,null,null,null,null,null,null,null,null,null,null,null,null,1460,"København K"]
[null,null,null,null,null,null,null,null,null,null,null,null,null,null,null,null,null,null,null,1461,"København K"]
[null,null,null,null,null,null,null,null,null,null,null,null,null,null,null,null,null,null,null,1462,"København K"]
[null,null,null,null,null,null,null,null,null,null,null,null,null,null,null,null,null,null,null,1463,"København K"]
[null,null,null,null,null,null,null,null,null,null,null,null,null,null,null,null,null,null,null,1464,"København K"]
[null,null,null,null,null,null,null,null,null,null,null,null,null,null,null,null,null,null,null,1465,"København K"]
[null,null,null,null,null,null,null,null,null,null,null,null,null,null,null,null,null,null,null,1466,"København K"]
[null,null,null,null,null,null,null,null,null,null,null,null,null,null,null,null,null,null,null,1467,"København K"]
[null,null,null,null,null,null,null,null,null,null,null,null,null,null,null,null,null,null,null,1468,"København K"]
[null,null,null,null,null,null,null,null,null,null,null,null,null,null,null,null,null,null,null,1470,"København K"]
[null,null,null,null,null,null,null,null,null,null,null,null,null,null,null,null,null,null,null,1471,"København K"]
[null,null,null,null,null,null,null,null,null,null,null,null,null,null,null,null,null,null,null,1472,"København K"]
[null,null,null,null,null,null,null,null,null,null,null,null,null,null,null,null,null,null,null,1473,"København K"]
[null,null,null,null,null,null,null,null,null,null,null,null,null,null,null,null,null,null,null,1500,"København V"]
[null,null,null,null,null,null,null,null,null,null,null,null,null,null,null,null,null,null,null,1501,"København V"]
[null,null,null,null,null,null,null,null,null,null,null,null,null,null,null,null,null,null,null,1502,"København V"]
[null,null,null,null,null,null,null,null,null,null,null,null,null,null,null,null,null,null,null,1503,"København V"]
[null,null,null,null,null,null,null,null,null,null,null,null,null,null,null,null,null,null,null,1504,"København V"]
[null,null,null,null,null,null,null,null,null,null,null,null,null,null,null,null,null,null,null,1505,"København V"]
[null,null,null,null,null,null,null,null,null,null,null,null,null,null,null,null,null,null,null,1506,"København V"]
[null,null,null,null,null,null,null,null,null,null,null,null,null,null,null,null,null,null,null,1507,"København V"]
[null,null,null,null,null,null,null,null,null,null,null,null,null,null,null,null,null,null,null,1508,"København V"]
[null,null,null,null,null,null,null,null,null,null,null,null,null,null,null,null,null,null,null,1509,"København V"]
[null,null,null,null,null,null,null,null,null,null,null,null,null,null,null,null,null,null,null,1510,"København V"]
[null,null,null,null,null,null,null,null,null,null,null,null,null,null,null,null,null,null,null,1530,"København V"]
[null,null,null,null,null,null,null,null,null,null,null,null,null,null,null,null,null,null,null,1533,"København V"]
[null,null,null,null,null,null,null,null,null,null,null,null,null,null,null,null,null,null,null,1550,"København V"]
[null,null,null,null,null,null,null,null,null,null,null,null,null,null,null,null,null,null,null,1551,"København V"]
[null,null,null,null,null,null,null,null,null,null,null,null,null,null,null,null,null,null,null,1552,"København V"]
[null,null,null,null,null,null,null,null,null,null,null,null,null,null,null,null,null,null,null,1553,"København V"]
[null,null,null,null,null,null,null,null,null,null,null,null,null,null,null,null,null,null,null,1554,"København V"]
[null,null,null,null,null,null,null,null,null,null,null,null,null,null,null,null,null,null,null,1555,"København V"]
[null,null,null,null,null,null,null,null,null,null,null,null,null,null,null,null,null,null,null,1556,"København V"]
[null,null,null,null,null,null,null,null,null,null,null,null,null,null,null,null,null,null,null,1557,"København V"]
[null,null,null,null,null,null,null,null,null,null,null,null,null,null,null,null,null,null,null,1558,"København V"]
[null,null,null,null,null,null,null,null,null,null,null,null,null,null,null,null,null,null,null,1559,"København V"]
[null,null,null,null,null,null,null,null,null,null,null,null,null,null,null,null,null,null,null,1560,"København V"]
[null,null,null,null,null,null,null,null,null,null,null,null,null,null,null,null,null,null,null,1561,"København V"]
[null,null,null,null,null,null,null,null,null,null,null,null,null,null,null,null,null,null,null,1562,"København V"]
[null,null,null,null,null,null,null,null,null,null,null,null,null,null,null,null,null,null,null,1563,"København V"]
[null,null,null,null,null,null,null,null,null,null,null,null,null,null,null,null,null,null,null,1564,"København V"]
[null,null,null,null,null,null,null,null,null,null,null,null,null,null,null,null,null,null,null,1566,"København V"]
[null,null,null,null,null,null,null,null,null,null,null,null,null,null,null,null,null,null,null,1567,"København V"]
[null,null,null,null,null,null,null,null,null,null,null,null,null,null,null,null,null,null,null,1568,"København V"]
[null,null,null,null,null,null,null,null,null,null,null,null,null,null,null,null,null,null,null,1569,"København V"]
[null,null,null,null,null,null,null,null,null,null,null,null,null,null,null,null,null,null,null,1570,"København V"]
[null,null,null,null,null,null,null,null,null,null,null,null,null,null,null,null,null,null,null,1571,"København V"]
[null,null,null,null,null,null,null,null,null,null,null,null,null,null,null,null,null,null,null,1572,"København V"]
[null,null,null,null,null,null,null,null,null,null,null,null,null,null,null,null,null,null,null,1573,"København V"]
[null,null,null,null,null,null,null,null,null,null,null,null,null,null,null,null,null,null,null,1574,"København V"]
[null,null,null,null,null,null,null,null,null,null,null,null,null,null,null,null,null,null,null,1575,"København V"]
[null,null,null,null,null,null,null,null,null,null,null,null,null,null,null,null,null,null,null,1576,"København V"]
[null,null,null,null,null,null,null,null,null,null,null,null,null,null,null,null,null,null,null,1577,"København V"]
[null,null,null,null,null,null,null,null,null,null,null,null,null,null,null,null,null,null,null,1581,"København V"]
[null,null,null,null,null,null,null,null,null,null,null,null,null,null,null,null,null,null,null,1583,"København V"]
[null,null,null,null,null,null,null,null,null,null,null,null,null,null,null,null,null,null,null,1590,"København V"]
[null,null,null,null,null,null,null,null,null,null,null,null,null,null,null,null,null,null,null,1592,"København V"]
[null,null,null,null,null,null,null,null,null,null,null,null,null,null,null,null,null,null,null,1595,"København V"]
[null,null,null,null,null,null,null,null,null,null,null,null,null,null,null,null,null,null,null,1599,"København V"]
[null,null,null,null,null,null,null,null,null,null,null,null,null,null,null,null,null,null,null,1600,"København V"]
[null,null,null,null,null,null,null,null,null,null,null,null,null,null,null,null,null,null,null,1601,"København V"]
[null,null,null,null,null,null,null,null,null,null,null,null,null,null,null,null,null,null,null,1602,"København V"]
[null,null,null,null,null,null,null,null,null,null,null,null,null,null,null,null,null,null,null,1603,"København V"]
[null,null,null,null,null,null,null,null,null,null,null,null,null,null,null,null,null,null,null,1604,"København V"]
[null,null,null,null,null,null,null,null,null,null,null,null,null,null,null,null,null,null,null,1605,"København V"]
[null,null,null,null,null,null,null,null,null,null,null,null,null,null,null,null,null,null,null,1606,"København V"]
[null,null,null,null,null,null,null,null,null,null,null,null,null,null,null,null,null,null,null,1607,"København V"]
[null,null,null,null,null,null,null,null,null,null,null,null,null,null,null,null,null,null,null,1608,"København V"]
[null,null,null,null,null,null,null,null,null,null,null,null,null,null,null,null,null,null,null,1609,"København V"]
[null,null,null,null,null,null,null,null,null,null,null,null,null,null,null,null,null,null,null,1610,"København V"]
[null,null,null,null,null,null,null,null,null,null,null,null,null,null,null,null,null,null,null,1611,"København V"]
[null,null,null,null,null,null,null,null,null,null,null,null,null,null,null,null,null,null,null,1612,"København V"]
[null,null,null,null,null,null,null,null,null,null,null,null,null,null,null,null,null,null,null,1613,"København V"]
[null,null,null,null,null,null,null,null,null,null,null,null,null,null,null,null,null,null,null,1614,"København V"]
[null,null,null,null,null,null,null,null,null,null,null,null,null,null,null,null,null,null,null,1615,"København V"]
[null,null,null,null,null,null,null,null,null,null,null,null,null,null,null,null,null,null,null,1616,"København V"]
[null,null,null,null,null,null,null,null,null,null,null,null,null,null,null,null,null,null,null,1617,"København V"]
[null,null,null,null,null,null,null,null,null,null,null,null,null,null,null,null,null,null,null,1618,"København V"]
[null,null,null,null,null,null,null,null,null,null,null,null,null,null,null,null,null,null,null,1619,"København V"]
[null,null,null,null,null,null,null,null,null,null,null,null,null,null,null,null,null,null,null,1620,"København V"]
[null,null,null,null,null,null,null,null,null,null,null,null,null,null,null,null,null,null,null,1621,"København V"]
[null,null,null,null,null,null,null,null,null,null,null,null,null,null,null,null,null,null,null,1622,"København V"]
[null,null,null,null,null,null,null,null,null,null,null,null,null,null,null,null,null,null,null,1623,"København V"]
[null,null,null,null,null,null,null,null,null,null,null,null,null,null,null,null,null,null,null,1624,"København V"]
[null,null,null,null,null,null,null,null,null,null,null,null,null,null,null,null,null,null,null,1630,"København V"]
[null,null,null,null,null,null,null,null,null,null,null,null,null,null,null,null,null,null,null,1631,"København V"]
[null,null,null,null,null,null,null,null,null,null,null,null,null,null,null,null,null,null,null,1632,"København V"]
[null,null,null,null,null,null,null,null,null,null,null,null,null,null,null,null,null,null,null,1633,"København V"]
[null,null,null,null,null,null,null,null,null,null,null,null,null,null,null,null,null,null,null,1634,"København V"]
[null,null,null,null,null,null,null,null,null,null,null,null,null,null,null,null,null,null,null,1635,"København V"]
[null,null,null,null,null,null,null,null,null,null,null,null,null,null,null,null,null,null,null,1639,"København V"]
[null,null,null,null,null,null,null,null,null,null,null,null,null,null,null,null,null,null,null,1640,"København V"]
[null,null,null,null,null,null,null,null,null,null,null,null,null,null,null,null,null,null,null,1648,"København V"]
[null,null,null,null,null,null,null,null,null,null,null,null,null,null,null,null,null,null,null,1650,"København V"]
[null,null,null,null,null,null,null,null,null,null,null,null,null,null,null,null,null,null,null,1651,"København V"]
[null,null,null,null,null,null,null,null,null,null,null,null,null,null,null,null,null,null,null,1652,"København V"]
[null,null,null,null,null,null,null,null,null,null,null,null,null,null,null,null,null,null,null,1653,"København V"]
[null,null,null,null,null,null,null,null,null,null,null,null,null,null,null,null,null,null,null,1654,"København V"]
[null,null,null,null,null,null,null,null,null,null,null,null,null,null,null,null,null,null,null,1655,"København V"]
[null,null,null,null,null,null,null,null,null,null,null,null,null,null,null,null,null,null,null,1656,"København V"]
[null,null,null,null,null,null,null,null,null,null,null,null,null,null,null,null,null,null,null,1657,"København V"]
[null,null,null,null,null,null,null,null,null,null,null,null,null,null,null,null,null,null,null,1658,"København V"]
[null,null,null,null,null,null,null,null,null,null,null,null,null,null,null,null,null,null,null,1659,"København V"]
[null,null,null,null,null,null,null,null,null,null,null,null,null,null,null,null,null,null,null,1660,"København V"]
[null,null,null,null,null,null,null,null,null,null,null,null,null,null,null,null,null,null,null,1661,"København V"]
[null,null,null,null,null,null,null,null,null,null,null,null,null,null,null,null,null,null,null,1662,"København V"]
[null,null,null,null,null,null,null,null,null,null,null,null,null,null,null,null,null,null,null,1663,"København V"]
[null,null,null,null,null,null,null,null,null,null,null,null,null,null,null,null,null,null,null,1664,"København V"]
[null,null,null,null,null,null,null,null,null,null,null,null,null,null,null,null,null,null,null,1665,"København V"]
[null,null,null,null,null,null,null,null,null,null,null,null,null,null,null,null,null,null,null,1666,"København V"]
[null,null,null,null,null,null,null,null,null,null,null,null,null,null,null,null,null,null,null,1667,"København V"]
[null,null,null,null,null,null,null,null,null,null,null,null,null,null,null,null,null,null,null,1668,"København V"]
[null,null,null,null,null,null,null,null,null,null,null,null,null,null,null,null,null,null,null,1669,"København V"]
[null,null,null,null,null,null,null,null,null,null,null,null,null,null,null,null,null,null,null,1670,"København V"]
[null,null,null,null,null,null,null,null,null,null,null,null,null,null,null,null,null,null,null,1671,"København V"]
[null,null,null,null,null,null,null,null,null,null,null,null,null,null,null,null,null,null,null,1672,"København V"]
[null,null,null,null,null,null,null,null,null,null,null,null,null,null,null,null,null,null,null,1673,"København V"]
[null,null,null,null,null,null,null,null,null,null,null,null,null,null,null,null,null,null,null,1674,"København V"]
[null,null,null,null,null,null,null,null,null,null,null,null,null,null,null,null,null,null,null,1675,"København V"]
[null,null,null,null,null,null,null,null,null,null,null,null,null,null,null,null,null,null,null,1676,"København V"]
[null,null,null,null,null,null,null,null,null,null,null,null,null,null,null,null,null,null,null,1677,"København V"]
[null,null,null,null,null,null,null,null,null,null,null,null,null,null,null,null,null,null,null,1699,"København V"]
[null,null,null,null,null,null,null,null,null,null,null,null,null,null,null,null,null,null,null,1700,"København V"]
[null,null,null,null,null,null,null,null,null,null,null,null,null,null,null,null,null,null,null,1701,"København V"]
[null,null,null,null,null,null,null,null,null,null,null,null,null,null,null,null,null,null,null,1702,"København V"]
[null,null,null,null,null,null,null,null,null,null,null,null,null,null,null,null,null,null,null,1703,"København V"]
[null,null,null,null,null,null,null,null,null,null,null,null,null,null,null,null,null,null,null,1704,"København V"]
[null,null,null,null,null,null,null,null,null,null,null,null,null,null,null,null,null,null,null,1705,"København V"]
[null,null,null,null,null,null,null,null,null,null,null,null,null,null,null,null,null,null,null,1706,"København V"]
[null,null,null,null,null,null,null,null,null,null,null,null,null,null,null,null,null,null,null,1707,"København V"]
[null,null,null,null,null,null,null,null,null,null,null,null,null,null,null,null,null,null,null,1708,"København V"]
[null,null,null,null,null,null,null,null,null,null,null,null,null,null,null,null,null,null,null,1709,"København V"]
[null,null,null,null,null,null,null,null,null,null,null,null,null,null,null,null,null,null,null,1710,"København V"]
[null,null,null,null,null,null,null,null,null,null,null,null,null,null,null,null,null,null,null,1711,"København V"]
[null,null,null,null,null,null,null,null,null,null,null,null,null,null,null,null,null,null,null,1712,"København V"]
[null,null,null,null,null,null,null,null,null,null,null,null,null,null,null,null,null,null,null,1713,"København V"]
[null,null,null,null,null,null,null,null,null,null,null,null,null,null,null,null,null,null,null,1714,"København V"]
[null,null,null,null,null,null,null,null,null,null,null,null,null,null,null,null,null,null,null,1715,"København V"]
[null,null,null,null,null,null,null,null,null,null,null,null,null,null,null,null,null,null,null,1716,"København V"]
[null,null,null,null,null,null,null,null,null,null,null,null,null,null,null,null,null,null,null,1717,"København V"]
[null,null,null,null,null,null,null,null,null,null,null,null,null,null,null,null,null,null,null,1718,"København V"]
[null,null,null,null,null,null,null,null,null,null,null,null,null,null,null,null,null,null,null,1719,"København V"]
[null,null,null,null,null,null,null,null,null,null,null,null,null,null,null,null,null,null,null,1720,"København V"]
[null,null,null,null,null,null,null,null,null,null,null,null,null,null,null,null,null,null,null,1721,"København V"]
[null,null,null,null,null,null,null,null,null,null,null,null,null,null,null,null,null,null,null,1722,"København V"]
[null,null,null,null,null,null,null,null,null,null,null,null,null,null,null,null,null,null,null,1723,"København V"]
[null,null,null,null,null,null,null,null,null,null,null,null,null,null,null,null,null,null,null,1724,"København V"]
[null,null,null,null,null,null,null,null,null,null,null,null,null,null,null,null,null,null,null,1725,"København V"]
[null,null,null,null,null,null,null,null,null,null,null,null,null,null,null,null,null,null,null,1726,"København V"]
[null,null,null,null,null,null,null,null,null,null,null,null,null,null,null,null,null,null,null,1727,"København V"]
[null,null,null,null,null,null,null,null,null,null,null,null,null,null,null,null,null,null,null,1728,"København V"]
[null,null,null,null,null,null,null,null,null,null,null,null,null,null,null,null,null,null,null,1729,"København V"]
[null,null,null,null,null,null,null,null,null,null,null,null,null,null,null,null,null,null,null,1730,"København V"]
[null,null,null,null,null,null,null,null,null,null,null,null,null,null,null,null,null,null,null,1731,"København V"]
[null,null,null,null,null,null,null,null,null,null,null,null,null,null,null,null,null,null,null,1732,"København V"]
[null,null,null,null,null,null,null,null,null,null,null,null,null,null,null,null,null,null,null,1733,"København V"]
[null,null,null,null,null,null,null,null,null,null,null,null,null,null,null,null,null,null,null,1734,"København V"]
[null,null,null,null,null,null,null,null,null,null,null,null,null,null,null,null,null,null,null,1735,"København V"]
[null,null,null,null,null,null,null,null,null,null,null,null,null,null,null,null,null,null,null,1736,"København V"]
[null,null,null,null,null,null,null,null,null,null,null,null,null,null,null,null,null,null,null,1737,"København V"]
[null,null,null,null,null,null,null,null,null,null,null,null,null,null,null,null,null,null,null,1738,"København V"]
[null,null,null,null,null,null,null,null,null,null,null,null,null,null,null,null,null,null,null,1739,"København V"]
[null,null,null,null,null,null,null,null,null,null,null,null,null,null,null,null,null,null,null,1748,"København V"]
[null,null,null,null,null,null,null,null,null,null,null,null,null,null,null,null,null,null,null,1749,"København V"]
[null,null,null,null,null,null,null,null,null,null,null,null,null,null,null,null,null,null,null,1750,"København V"]
[null,null,null,null,null,null,null,null,null,null,null,null,null,null,null,null,null,null,null,1751,"København V"]
[null,null,null,null,null,null,null,null,null,null,null,null,null,null,null,null,null,null,null,1752,"København V"]
[null,null,null,null,null,null,null,null,null,null,null,null,null,null,null,null,null,null,null,1753,"København V"]
[null,null,null,null,null,null,null,null,null,null,null,null,null,null,null,null,null,null,null,1754,"København V"]
[null,null,null,null,null,null,null,null,null,null,null,null,null,null,null,null,null,null,null,1755,"København V"]
[null,null,null,null,null,null,null,null,null,null,null,null,null,null,null,null,null,null,null,1756,"København V"]
[null,null,null,null,null,null,null,null,null,null,null,null,null,null,null,null,null,null,null,1757,"København V"]
[null,null,null,null,null,null,null,null,null,null,null,null,null,null,null,null,null,null,null,1758,"København V"]
[null,null,null,null,null,null,null,null,null,null,null,null,null,null,null,null,null,null,null,1759,"København V"]
[null,null,null,null,null,null,null,null,null,null,null,null,null,null,null,null,null,null,null,1760,"København V"]
[null,null,null,null,null,null,null,null,null,null,null,null,null,null,null,null,null,null,null,1761,"København V"]
[null,null,null,null,null,null,null,null,null,null,null,null,null,null,null,null,null,null,null,1762,"København V"]
[null,null,null,null,null,null,null,null,null,null,null,null,null,null,null,null,null,null,null,1763,"København V"]
[null,null,null,null,null,null,null,null,null,null,null,null,null,null,null,null,null,null,null,1764,"København V"]
[null,null,null,null,null,null,null,null,null,null,null,null,null,null,null,null,null,null,null,1765,"København V"]
[null,null,null,null,null,null,null,null,null,null,null,null,null,null,null,null,null,null,null,1766,"København V"]
[null,null,null,null,null,null,null,null,null,null,null,null,null,null,null,null,null,null,null,1770,"København V"]
[null,null,null,null,null,null,null,null,null,null,null,null,null,null,null,null,null,null,null,1771,"København V"]
[null,null,null,null,null,null,null,null,null,null,null,null,null,null,null,null,null,null,null,1772,"København V"]
[null,null,null,null,null,null,null,null,null,null,null,null,null,null,null,null,null,null,null,1773,"København V"]
[null,null,null,null,null,null,null,null,null,null,null,null,null,null,null,null,null,null,null,1774,"København V"]
[null,null,null,null,null,null,null,null,null,null,null,null,null,null,null,null,null,null,null,1775,"København V"]
[null,null,null,null,null,null,null,null,null,null,null,null,null,null,null,null,null,null,null,1777,"København V"]
[null,null,null,null,null,null,null,null,null,null,null,null,null,null,null,null,null,null,null,1778,"København V"]
[null,null,null,null,null,null,null,null,null,null,null,null,null,null,null,null,null,null,null,1780,"København V"]
[null,null,null,null,null,null,null,null,null,null,null,null,null,null,null,null,null,null,null,1785,"København V"]
[null,null,null,null,null,null,null,null,null,null,null,null,null,null,null,null,null,null,null,1786,"København V"]
[null,null,null,null,null,null,null,null,null,null,null,null,null,null,null,null,null,null,null,1787,"København V"]
[null,null,null,null,null,null,null,null,null,null,null,null,null,null,null,null,null,null,null,1788,"København V"]
[null,null,null,null,null,null,null,null,null,null,null,null,null,null,null,null,null,null,null,1790,"København V"]
[null,null,null,null,null,null,null,null,null,null,null,null,null,null,null,null,null,null,null,1795,"København V"]
[null,null,null,null,null,null,null,null,null,null,null,null,null,null,null,null,null,null,null,1799,"København V"]
[null,null,null,null,null,null,null,null,null,null,null,null,null,null,null,null,null,null,null,1800,"Frederiksberg C"]
[null,null,null,null,null,null,null,null,null,null,null,null,null,null,null,null,null,null,null,1801,"Frederiksberg C"]
[null,null,null,null,null,null,null,null,null,null,null,null,null,null,null,null,null,null,null,1802,"Frederiksberg C"]
[null,null,null,null,null,null,null,null,null,null,null,null,null,null,null,null,null,null,null,1803,"Frederiksberg C"]
[null,null,null,null,null,null,null,null,null,null,null,null,null,null,null,null,null,null,null,1804,"Frederiksberg C"]
[null,null,null,null,null,null,null,null,null,null,null,null,null,null,null,null,null,null,null,1805,"Frederiksberg C"]
[null,null,null,null,null,null,null,null,null,null,null,null,null,null,null,null,null,null,null,1806,"Frederiksberg C"]
[null,null,null,null,null,null,null,null,null,null,null,null,null,null,null,null,null,null,null,1807,"Frederiksberg C"]
[null,null,null,null,null,null,null,null,null,null,null,null,null,null,null,null,null,null,null,1808,"Frederiksberg C"]
[null,null,null,null,null,null,null,null,null,null,null,null,null,null,null,null,null,null,null,1809,"Frederiksberg C"]
[null,null,null,null,null,null,null,null,null,null,null,null,null,null,null,null,null,null,null,1810,"Frederiksberg C"]
[null,null,null,null,null,null,null,null,null,null,null,null,null,null,null,null,null,null,null,1811,"Frederiksberg C"]
[null,null,null,null,null,null,null,null,null,null,null,null,null,null,null,null,null,null,null,1812,"Frederiksberg C"]
[null,null,null,null,null,null,null,null,null,null,null,null,null,null,null,null,null,null,null,1813,"Frederiksberg C"]
[null,null,null,null,null,null,null,null,null,null,null,null,null,null,null,null,null,null,null,1814,"Frederiksberg C"]
[null,null,null,null,null,null,null,null,null,null,null,null,null,null,null,null,null,null,null,1815,"Frederiksberg C"]
[null,null,null,null,null,null,null,null,null,null,null,null,null,null,null,null,null,null,null,1816,"Frederiksberg C"]
[null,null,null,null,null,null,null,null,null,null,null,null,null,null,null,null,null,null,null,1817,"Frederiksberg C"]
[null,null,null,null,null,null,null,null,null,null,null,null,null,null,null,null,null,null,null,1818,"Frederiksberg C"]
[null,null,null,null,null,null,null,null,null,null,null,null,null,null,null,null,null,null,null,1819,"Frederiksberg C"]
[null,null,null,null,null,null,null,null,null,null,null,null,null,null,null,null,null,null,null,1820,"Frederiksberg C"]
[null,null,null,null,null,null,null,null,null,null,null,null,null,null,null,null,null,null,null,1822,"Frederiksberg C"]
[null,null,null,null,null,null,null,null,null,null,null,null,null,null,null,null,null,null,null,1823,"Frederiksberg C"]
[null,null,null,null,null,null,null,null,null,null,null,null,null,null,null,null,null,null,null,1824,"Frederiksberg C"]
[null,null,null,null,null,null,null,null,null,null,null,null,null,null,null,null,null,null,null,1825,"Frederiksberg C"]
[null,null,null,null,null,null,null,null,null,null,null,null,null,null,null,null,null,null,null,1826,"Frederiksberg C"]
[null,null,null,null,null,null,null,null,null,null,null,null,null,null,null,null,null,null,null,1827,"Frederiksberg C"]
[null,null,null,null,null,null,null,null,null,null,null,null,null,null,null,null,null,null,null,1828,"Frederiksberg C"]
[null,null,null,null,null,null,null,null,null,null,null,null,null,null,null,null,null,null,null,1829,"Frederiksberg C"]
[null,null,null,null,null,null,null,null,null,null,null,null,null,null,null,null,null,null,null,1850,"Frederiksberg C"]
[null,null,null,null,null,null,null,null,null,null,null,null,null,null,null,null,null,null,null,1851,"Frederiksberg C"]
[null,null,null,null,null,null,null,null,null,null,null,null,null,null,null,null,null,null,null,1852,"Frederiksberg C"]
[null,null,null,null,null,null,null,null,null,null,null,null,null,null,null,null,null,null,null,1853,"Frederiksberg C"]
[null,null,null,null,null,null,null,null,null,null,null,null,null,null,null,null,null,null,null,1854,"Frederiksberg C"]
[null,null,null,null,null,null,null,null,null,null,null,null,null,null,null,null,null,null,null,1855,"Frederiksberg C"]
[null,null,null,null,null,null,null,null,null,null,null,null,null,null,null,null,null,null,null,1856,"Frederiksberg C"]
[null,null,null,null,null,null,null,null,null,null,null,null,null,null,null,null,null,null,null,1857,"Frederiksberg C"]
[null,null,null,null,null,null,null,null,null,null,null,null,null,null,null,null,null,null,null,1860,"Frederiksberg C"]
[null,null,null,null,null,null,null,null,null,null,null,null,null,null,null,null,null,null,null,1861,"Frederiksberg C"]
[null,null,null,null,null,null,null,null,null,null,null,null,null,null,null,null,null,null,null,1862,"Frederiksberg C"]
[null,null,null,null,null,null,null,null,null,null,null,null,null,null,null,null,null,null,null,1863,"Frederiksberg C"]
[null,null,null,null,null,null,null,null,null,null,null,null,null,null,null,null,null,null,null,1864,"Frederiksberg C"]
[null,null,null,null,null,null,null,null,null,null,null,null,null,null,null,null,null,null,null,1865,"Frederiksberg C"]
[null,null,null,null,null,null,null,null,null,null,null,null,null,null,null,null,null,null,null,1866,"Frederiksberg C"]
[null,null,null,null,null,null,null,null,null,null,null,null,null,null,null,null,null,null,null,1867,"Frederiksberg C"]
[null,null,null,null,null,null,null,null,null,null,null,null,null,null,null,null,null,null,null,1868,"Frederiksberg C"]
[null,null,null,null,null,null,null,null,null,null,null,null,null,null,null,null,null,null,null,1870,"Frederiksberg C"]
[null,null,null,null,null,null,null,null,null,null,null,null,null,null,null,null,null,null,null,1871,"Frederiksberg C"]
[null,null,null,null,null,null,null,null,null,null,null,null,null,null,null,null,null,null,null,1872,"Frederiksberg C"]
[null,null,null,null,null,null,null,null,null,null,null,null,null,null,null,null,null,null,null,1873,"Frederiksberg C"]
[null,null,null,null,null,null,null,null,null,null,null,null,null,null,null,null,null,null,null,1874,"Frederiksberg C"]
[null,null,null,null,null,null,null,null,null,null,null,null,null,null,null,null,null,null,null,1875,"Frederiksberg C"]
[null,null,null,null,null,null,null,null,null,null,null,null,null,null,null,null,null,null,null,1876,"Frederiksberg C"]
[null,null,null,null,null,null,null,null,null,null,null,null,null,null,null,null,null,null,null,1877,"Frederiksberg C"]
[null,null,null,null,null,null,null,null,null,null,null,null,null,null,null,null,null,null,null,1878,"Frederiksberg C"]
[null,null,null,null,null,null,null,null,null,null,null,null,null,null,null,null,null,null,null,1879,"Frederiksberg C"]
[null,null,null,null,null,null,null,null,null,null,null,null,null,null,null,null,null,null,null,1900,"Frederiksberg C"]
[null,null,null,null,null,null,null,null,null,null,null,null,null,null,null,null,null,null,null,1901,"Frederiksberg C"]
[null,null,null,null,null,null,null,null,null,null,null,null,null,null,null,null,null,null,null,1902,"Frederiksberg C"]
[null,null,null,null,null,null,null,null,null,null,null,null,null,null,null,null,null,null,null,1903,"Frederiksberg C"]
[null,null,null,null,null,null,null,null,null,null,null,null,null,null,null,null,null,null,null,1904,"Frederiksberg C"]
[null,null,null,null,null,null,null,null,null,null,null,null,null,null,null,null,null,null,null,1905,"Frederiksberg C"]
[null,null,null,null,null,null,null,null,null,null,null,null,null,null,null,null,null,null,null,1906,"Frederiksberg C"]
[null,null,null,null,null,null,null,null,null,null,null,null,null,null,null,null,null,null,null,1908,"Frederiksberg C"]
[null,null,null,null,null,null,null,null,null,null,null,null,null,null,null,null,null,null,null,1909,"Frederiksberg C"]
[null,null,null,null,null,null,null,null,null,null,null,null,null,null,null,null,null,null,null,1910,"Frederiksberg C"]
[null,null,null,null,null,null,null,null,null,null,null,null,null,null,null,null,null,null,null,1911,"Frederiksberg C"]
[null,null,null,null,null,null,null,null,null,null,null,null,null,null,null,null,null,null,null,1912,"Frederiksberg C"]
[null,null,null,null,null,null,null,null,null,null,null,null,null,null,null,null,null,null,null,1913,"Frederiksberg C"]
[null,null,null,null,null,null,null,null,null,null,null,null,null,null,null,null,null,null,null,1914,"Frederiksberg C"]
[null,null,null,null,null,null,null,null,null,null,null,null,null,null,null,null,null,null,null,1915,"Frederiksberg C"]
[null,null,null,null,null,null,null,null,null,null,null,null,null,null,null,null,null,null,null,1916,"Frederiksberg C"]
[null,null,null,null,null,null,null,null,null,null,null,null,null,null,null,null,null,null,null,1917,"Frederiksberg C"]
[null,null,null,null,null,null,null,null,null,null,null,null,null,null,null,null,null,null,null,1918,"Frederiksberg C"]
[null,null,null,null,null,null,null,null,null,null,null,null,null,null,null,null,null,null,null,1920,"Frederiksberg C"]
[null,null,null,null,null,null,null,null,null,null,null,null,null,null,null,null,null,null,null,1921,"Frederiksberg C"]
[null,null,null,null,null,null,null,null,null,null,null,null,null,null,null,null,null,null,null,1922,"Frederiksberg C"]
[null,null,null,null,null,null,null,null,null,null,null,null,null,null,null,null,null,null,null,1923,"Frederiksberg C"]
[null,null,null,null,null,null,null,null,null,null,null,null,null,null,null,null,null,null,null,1924,"Frederiksberg C"]
[null,null,null,null,null,null,null,null,null,null,null,null,null,null,null,null,null,null,null,1925,"Frederiksberg C"]
[null,null,null,null,null,null,null,null,null,null,null,null,null,null,null,null,null,null,null,1926,"Frederiksberg C"]
[null,null,null,null,null,null,null,null,null,null,null,null,null,null,null,null,null,null,null,1927,"Frederiksberg C"]
[null,null,null,null,null,null,null,null,null,null,null,null,null,null,null,null,null,null,null,1928,"Frederiksberg C"]
[null,null,null,null,null,null,null,null,null,null,null,null,null,null,null,null,null,null,null,1940,"Frederiksberg C"]
[null,null,null,null,null,null,null,null,null,null,null,null,null,null,null,null,null,null,null,1950,"Frederiksberg C"]
[null,null,null,null,null,null,null,null,null,null,null,null,null,null,null,null,null,null,null,1951,"Frederiksberg C"]
[null,null,null,null,null,null,null,null,null,null,null,null,null,null,null,null,null,null,null,1952,"Frederiksberg C"]
[null,null,null,null,null,null,null,null,null,null,null,null,null,null,null,null,null,null,null,1953,"Frederiksberg C"]
[null,null,null,null,null,null,null,null,null,null,null,null,null,null,null,null,null,null,null,1954,"Frederiksberg C"]
[null,null,null,null,null,null,null,null,null,null,null,null,null,null,null,null,null,null,null,1955,"Frederiksberg C"]
[null,null,null,null,null,null,null,null,null,null,null,null,null,null,null,null,null,null,null,1956,"Frederiksberg C"]
[null,null,null,null,null,null,null,null,null,null,null,null,null,null,null,null,null,null,null,1957,"Frederiksberg C"]
[null,null,null,null,null,null,null,null,null,null,null,null,null,null,null,null,null,null,null,1958,"Frederiksberg C"]
[null,null,null,null,null,null,null,null,null,null,null,null,null,null,null,null,null,null,null,1959,"Frederiksberg C"]
[null,null,null,null,null,null,null,null,null,null,null,null,null,null,null,null,null,null,null,1960,"Frederiksberg C"]
[null,null,null,null,null,null,null,null,null,null,null,null,null,null,null,null,null,null,null,1961,"Frederiksberg C"]
[null,null,null,null,null,null,null,null,null,null,null,null,null,null,null,null,null,null,null,1962,"Frederiksberg C"]
[null,null,null,null,null,null,null,null,null,null,null,null,null,null,null,null,null,null,null,1963,"Frederiksberg C"]
[null,null,null,null,null,null,null,null,null,null,null,null,null,null,null,null,null,null,null,1964,"Frederiksberg C"]
[null,null,null,null,null,null,null,null,null,null,null,null,null,null,null,null,null,null,null,1965,"Frederiksberg C"]
[null,null,null,null,null,null,null,null,null,null,null,null,null,null,null,null,null,null,null,1966,"Frederiksberg C"]
[null,null,null,null,null,null,null,null,null,null,null,null,null,null,null,null,null,null,null,1967,"Frederiksberg C"]
[null,null,null,null,null,null,null,null,null,null,null,null,null,null,null,null,null,null,null,1970,"Frederiksberg C"]
[null,null,null,null,null,null,null,null,null,null,null,null,null,null,null,null,null,null,null,1971,"Frederiksberg C"]
[null,null,null,null,null,null,null,null,null,null,null,null,null,null,null,null,null,null,null,1972,"Frederiksberg C"]
[null,null,null,null,null,null,null,null,null,null,null,null,null,null,null,null,null,null,null,1973,"Frederiksberg C"]
[null,null,null,null,null,null,null,null,null,null,null,null,null,null,null,null,null,null,null,1974,"Frederiksberg C"]
[null,null,null,null,null,null,null,null,null,null,null,null,null,null,null,null,null,null,null,1999,"Frederiksberg C"]
[null,null,null,null,null,null,null,null,null,null,null,null,null,null,null,null,null,null,null,2000,"Frederiksberg"]
[null,null,null,null,null,null,null,null,null,null,null,null,null,null,null,null,null,null,null,2100,"København Ø"]
[null,null,null,null,null,null,null,null,null,null,null,null,null,null,null,null,null,null,null,2150,"Nordhavn"]
[null,null,null,null,null,null,null,null,null,null,null,null,null,null,null,null,null,null,null,2200,"København N"]
[null,null,null,null,null,null,null,null,null,null,null,null,null,null,null,null,null,null,null,2300,"København S"]
[null,null,null,null,null,null,null,null,null,null,null,null,null,null,null,null,null,null,null,2400,"København NV"]
[null,null,null,null,null,null,null,null,null,null,null,null,null,null,null,null,null,null,null,2450,"København SV"]
[null,null,null,null,null,null,null,null,null,null,null,null,null,null,null,null,null,null,null,2500,"Valby"]
[null,null,null,null,null,null,null,null,null,null,null,null,null,null,null,null,null,null,null,2600,"Glostrup"]
[null,null,null,null,null,null,null,null,null,null,null,null,null,null,null,null,null,null,null,2605,"Brøndby"]
[null,null,null,null,null,null,null,null,null,null,null,null,null,null,null,null,null,null,null,2610,"Rødovre"]
[null,null,null,null,null,null,null,null,null,null,null,null,null,null,null,null,null,null,null,2620,"Albertslund"]
[null,null,null,null,null,null,null,null,null,null,null,null,null,null,null,null,null,null,null,2625,"Vallensbæk"]
[null,null,null,null,null,null,null,null,null,null,null,null,null,null,null,null,null,null,null,2630,"Taastrup"]
[null,null,null,null,null,null,null,null,null,null,null,null,null,null,null,null,null,null,null,2633,"Høje Taastrup"]
[null,null,null,null,null,null,null,null,null,null,null,null,null,null,null,null,null,null,null,2635,"Ishøj"]
[null,null,null,null,null,null,null,null,null,null,null,null,null,null,null,null,null,null,null,2640,"Hedehusene"]
[null,null,null,null,null,null,null,null,null,null,null,null,null,null,null,null,null,null,null,2650,"Hvidovre"]
[null,null,null,null,null,null,null,null,null,null,null,null,null,null,null,null,null,null,null,2660,"Brøndby Strand"]
[null,null,null,null,null,null,null,null,null,null,null,null,null,null,null,null,null,null,null,2665,"Vallensbæk Strand"]
[null,null,null,null,null,null,null,null,null,null,null,null,null,null,null,null,null,null,null,2670,"Greve"]
[null,null,null,null,null,null,null,null,null,null,null,null,null,null,null,null,null,null,null,2680,"Solrød Strand"]
[null,null,null,null,null,null,null,null,null,null,null,null,null,null,null,null,null,null,null,2690,"Karlslunde"]
[null,null,null,null,null,null,null,null,null,null,null,null,null,null,null,null,null,null,null,2700,"Brønshøj"]
[null,null,null,null,null,null,null,null,null,null,null,null,null,null,null,null,null,null,null,2720,"Vanløse"]
[null,null,null,null,null,null,null,null,null,null,null,null,null,null,null,null,null,null,null,2730,"Herlev"]
[null,null,null,null,null,null,null,null,null,null,null,null,null,null,null,null,null,null,null,2740,"Skovlunde"]
[null,null,null,null,null,null,null,null,null,null,null,null,null,null,null,null,null,null,null,2750,"Ballerup"]
[null,null,null,null,null,null,null,null,null,null,null,null,null,null,null,null,null,null,null,2760,"Måløv"]
[null,null,null,null,null,null,null,null,null,null,null,null,null,null,null,null,null,null,null,2765,"Smørum"]
[null,null,null,null,null,null,null,null,null,null,null,null,null,null,null,null,null,null,null,2770,"Kastrup"]
[null,null,null,null,null,null,null,null,null,null,null,null,null,null,null,null,null,null,null,2791,"Dragør"]
[null,null,null,null,null,null,null,null,null,null,null,null,null,null,null,null,null,null,null,2800,"Lyngby"]
[null,null,null,null,null,null,null,null,null,null,null,null,null,null,null,null,null,null,null,2820,"Gentofte"]
[null,null,null,null,null,null,null,null,null,null,null,null,null,null,null,null,null,null,null,2830,"Virum"]
[null,null,null,null,null,null,null,null,null,null,null,null,null,null,null,null,null,null,null,2840,"Holte"]
[null,null,null,null,null,null,null,null,null,null,null,null,null,null,null,null,null,null,null,2850,"Nærum"]
[null,null,null,null,null,null,null,null,null,null,null,null,null,null,null,null,null,null,null,2860,"Søborg"]
[null,null,null,null,null,null,null,null,null,null,null,null,null,null,null,null,null,null,null,2880,"Bagsværd"]
[null,null,null,null,null,null,null,null,null,null,null,null,null,null,null,null,null,null,null,2900,"Hellerup"]
[null,null,null,null,null,null,null,null,null,null,null,null,null,null,null,null,null,null,null,2920,"Charlottenlund"]
[null,null,null,null,null,null,null,null,null,null,null,null,null,null,null,null,null,null,null,2930,"Klampenborg"]
[null,null,null,null,null,null,null,null,null,null,null,null,null,null,null,null,null,null,null,2942,"Skodsborg"]
[null,null,null,null,null,null,null,null,null,null,null,null,null,null,null,null,null,null,null,2950,"Vedbæk"]
[null,null,null,null,null,null,null,null,null,null,null,null,null,null,null,null,null,null,null,2960,"Rungsted Kyst"]
[null,null,null,null,null,null,null,null,null,null,null,null,null,null,null,null,null,null,null,2970,"Hørsholm"]
[null,null,null,null,null,null,null,null,null,null,null,null,null,null,null,null,null,null,null,2980,"Kokkedal"]
[null,null,null,null,null,null,null,null,null,null,null,null,null,null,null,null,null,null,null,2990,"Nivå"]
[null,null,null,null,null,null,null,null,null,null,null,null,null,null,null,null,null,null,null,3000,"Helsingør"]
[null,null,null,null,null,null,null,null,null,null,null,null,null,null,null,null,null,null,null,3050,"Humlebæk"]
[null,null,null,null,null,null,null,null,null,null,null,null,null,null,null,null,null,null,null,3060,"Espergærde"]
[null,null,null,null,null,null,null,null,null,null,null,null,null,null,null,null,null,null,null,3070,"Snekkersten"]
[null,null,null,null,null,null,null,null,null,null,null,null,null,null,null,null,null,null,null,3080,"Tikøb"]
[null,null,null,null,null,null,null,null,null,null,null,null,null,null,null,null,null,null,null,3100,"Hornbæk"]
[null,null,null,null,null,null,null,null,null,null,null,null,null,null,null,null,null,null,null,3120,"Dronningmølle"]
[null,null,null,null,null,null,null,null,null,null,null,null,null,null,null,null,null,null,null,3140,"Ålsgårde"]
[null,null,null,null,null,null,null,null,null,null,null,null,null,null,null,null,null,null,null,3150,"Hellebæk"]
[null,null,null,null,null,null,null,null,null,null,null,null,null,null,null,null,null,null,null,3200,"Helsinge"]
[null,null,null,null,null,null,null,null,null,null,null,null,null,null,null,null,null,null,null,3210,"Vejby"]
[null,null,null,null,null,null,null,null,null,null,null,null,null,null,null,null,null,null,null,3220,"Tisvildeleje"]
[null,null,null,null,null,null,null,null,null,null,null,null,null,null,null,null,null,null,null,3230,"Græsted"]
[null,null,null,null,null,null,null,null,null,null,null,null,null,null,null,null,null,null,null,3250,"Gilleleje"]
[null,null,null,null,null,null,null,null,null,null,null,null,null,null,null,null,null,null,null,3300,"Frederiksværk"]
[null,null,null,null,null,null,null,null,null,null,null,null,null,null,null,null,null,null,null,3310,"Ølsted"]
[null,null,null,null,null,null,null,null,null,null,null,null,null,null,null,null,null,null,null,3320,"Skævinge"]
[null,null,null,null,null,null,null,null,null,null,null,null,null,null,null,null,null,null,null,3330,"Gørløse"]
[null,null,null,null,null,null,null,null,null,null,null,null,null,null,null,null,null,null,null,3360,"Liseleje"]
[null,null,null,null,null,null,null,null,null,null,null,null,null,null,null,null,null,null,null,3370,"Melby"]
[null,null,null,null,null,null,null,null,null,null,null,null,null,null,null,null,null,null,null,3390,"Hundested"]
[null,null,null,null,null,null,null,null,null,null,null,null,null,null,null,null,null,null,null,3400,"Hillerød"]
[null,null,null,null,null,null,null,null,null,null,null,null,null,null,null,null,null,null,null,3450,"Allerød"]
[null,null,null,null,null,null,null,null,null,null,null,null,null,null,null,null,null,null,null,3460,"Birkerød"]
[null,null,null,null,null,null,null,null,null,null,null,null,null,null,null,null,null,null,null,3480,"Fredensborg"]
[null,null,null,null,null,null,null,null,null,null,null,null,null,null,null,null,null,null,null,3490,"Kvistgård"]
[null,null,null,null,null,null,null,null,null,null,null,null,null,null,null,null,null,null,null,3500,"Værløse"]
[null,null,null,null,null,null,null,null,null,null,null,null,null,null,null,null,null,null,null,3520,"Farum"]
[null,null,null,null,null,null,null,null,null,null,null,null,null,null,null,null,null,null,null,3540,"Lynge"]
[null,null,null,null,null,null,null,null,null,null,null,null,null,null,null,null,null,null,null,3550,"Slangerup"]
[null,null,null,null,null,null,null,null,null,null,null,null,null,null,null,null,null,null,null,3600,"Frederikssund"]
[null,null,null,null,null,null,null,null,null,null,null,null,null,null,null,null,null,null,null,3630,"Jægerspris"]
[null,null,null,null,null,null,null,null,null,null,null,null,null,null,null,null,null,null,null,3650,"Ølstykke"]
[null,null,null,null,null,null,null,null,null,null,null,null,null,null,null,null,null,null,null,3660,"Stenløse"]
[null,null,null,null,null,null,null,null,null,null,null,null,null,null,null,null,null,null,null,3670,"Veksø Sjælland"]
[null,null,null,null,null,null,null,null,null,null,null,null,null,null,null,null,null,null,null,3700,"Rønne"]
[null,null,null,null,null,null,null,null,null,null,null,null,null,null,null,null,null,null,null,3720,"Aakirkeby"]
[null,null,null,null,null,null,null,null,null,null,null,null,null,null,null,null,null,null,null,3730,"Neksø"]
[null,null,null,null,null,null,null,null,null,null,null,null,null,null,null,null,null,null,null,3740,"Svaneke"]
[null,null,null,null,null,null,null,null,null,null,null,null,null,null,null,null,null,null,null,3751,"Østermarie"]
[null,null,null,null,null,null,null,null,null,null,null,null,null,null,null,null,null,null,null,3760,"Gudhjem"]
[null,null,null,null,null,null,null,null,null,null,null,null,null,null,null,null,null,null,null,3770,"Allinge"]
[null,null,null,null,null,null,null,null,null,null,null,null,null,null,null,null,null,null,null,3782,"Klemensker"]
[null,null,null,null,null,null,null,null,null,null,null,null,null,null,null,null,null,null,null,3790,"Hasle"]
[null,null,null,null,null,null,null,null,null,null,null,null,null,null,null,null,null,null,null,3800,"Tórshavn"]
[null,null,null,null,null,null,null,null,null,null,null,null,null,null,null,null,null,null,null,3812,"Posthuse på Vágar pr. Tórshavn"]
[null,null,null,null,null,null,null,null,null,null,null,null,null,null,null,null,null,null,null,3813,"Fuglafjørdur pr. Tórshavn"]
[null,null,null,null,null,null,null,null,null,null,null,null,null,null,null,null,null,null,null,3820,"Skopun"]
[null,null,null,null,null,null,null,null,null,null,null,null,null,null,null,null,null,null,null,3821,"Sandur"]
[null,null,null,null,null,null,null,null,null,null,null,null,null,null,null,null,null,null,null,3822,"Skálavik"]
[null,null,null,null,null,null,null,null,null,null,null,null,null,null,null,null,null,null,null,3823,"Dalur"]
[null,null,null,null,null,null,null,null,null,null,null,null,null,null,null,null,null,null,null,3826,"Skúvoy"]
[null,null,null,null,null,null,null,null,null,null,null,null,null,null,null,null,null,null,null,3827,"Nólsoy"]
[null,null,null,null,null,null,null,null,null,null,null,null,null,null,null,null,null,null,null,3828,"Hestur"]
[null,null,null,null,null,null,null,null,null,null,null,null,null,null,null,null,null,null,null,3829,"Koltur"]
[null,null,null,null,null,null,null,null,null,null,null,null,null,null,null,null,null,null,null,3830,"Ljósá"]
[null,null,null,null,null,null,null,null,null,null,null,null,null,null,null,null,null,null,null,3831,"Elduvik"]
[null,null,null,null,null,null,null,null,null,null,null,null,null,null,null,null,null,null,null,3832,"Funningur"]
[null,null,null,null,null,null,null,null,null,null,null,null,null,null,null,null,null,null,null,3833,"Gjógv"]
[null,null,null,null,null,null,null,null,null,null,null,null,null,null,null,null,null,null,null,3834,"Eidi "]
[null,null,null,null,null,null,null,null,null,null,null,null,null,null,null,null,null,null,null,3835,"Hvalvik"]
[null,null,null,null,null,null,null,null,null,null,null,null,null,null,null,null,null,null,null,3836,"Hósvik"]
[null,null,null,null,null,null,null,null,null,null,null,null,null,null,null,null,null,null,null,3837,"Haldarsvik"]
[null,null,null,null,null,null,null,null,null,null,null,null,null,null,null,null,null,null,null,3840,"Fuglafjørdur"]
[null,null,null,null,null,null,null,null,null,null,null,null,null,null,null,null,null,null,null,3842,"Leirvik"]
[null,null,null,null,null,null,null,null,null,null,null,null,null,null,null,null,null,null,null,3843,"Gøta"]
[null,null,null,null,null,null,null,null,null,null,null,null,null,null,null,null,null,null,null,3845,"Skálafjørdur"]
[null,null,null,null,null,null,null,null,null,null,null,null,null,null,null,null,null,null,null,3846,"Kolbanargjógv"]
[null,null,null,null,null,null,null,null,null,null,null,null,null,null,null,null,null,null,null,3847,"Morskranes"]
[null,null,null,null,null,null,null,null,null,null,null,null,null,null,null,null,null,null,null,3850,"Saltangará"]
[null,null,null,null,null,null,null,null,null,null,null,null,null,null,null,null,null,null,null,3854,"Rituvik"]
[null,null,null,null,null,null,null,null,null,null,null,null,null,null,null,null,null,null,null,3855,"Nes, Eysturoy"]
[null,null,null,null,null,null,null,null,null,null,null,null,null,null,null,null,null,null,null,3856,"Søldarfjørdur"]
[null,null,null,null,null,null,null,null,null,null,null,null,null,null,null,null,null,null,null,3857,"Gøtueidi"]
[null,null,null,null,null,null,null,null,null,null,null,null,null,null,null,null,null,null,null,3859,"Hellur"]
[null,null,null,null,null,null,null,null,null,null,null,null,null,null,null,null,null,null,null,3860,"Vestmanna"]
[null,null,null,null,null,null,null,null,null,null,null,null,null,null,null,null,null,null,null,3862,"Kollafjørdur"]
[null,null,null,null,null,null,null,null,null,null,null,null,null,null,null,null,null,null,null,3863,"Leynar"]
[null,null,null,null,null,null,null,null,null,null,null,null,null,null,null,null,null,null,null,3864,"Kvivik"]
[null,null,null,null,null,null,null,null,null,null,null,null,null,null,null,null,null,null,null,3865,"Sandavágur"]
[null,null,null,null,null,null,null,null,null,null,null,null,null,null,null,null,null,null,null,3866,"Midvágur"]
[null,null,null,null,null,null,null,null,null,null,null,null,null,null,null,null,null,null,null,3867,"Bøur"]
[null,null,null,null,null,null,null,null,null,null,null,null,null,null,null,null,null,null,null,3868,"Vatnsoyrar"]
[null,null,null,null,null,null,null,null,null,null,null,null,null,null,null,null,null,null,null,3869,"Mykines"]
[null,null,null,null,null,null,null,null,null,null,null,null,null,null,null,null,null,null,null,3870,"Klaksvik"]
[null,null,null,null,null,null,null,null,null,null,null,null,null,null,null,null,null,null,null,3874,"Anir"]
[null,null,null,null,null,null,null,null,null,null,null,null,null,null,null,null,null,null,null,3875,"Vidareidi"]
[null,null,null,null,null,null,null,null,null,null,null,null,null,null,null,null,null,null,null,3876,"Svinoy"]
[null,null,null,null,null,null,null,null,null,null,null,null,null,null,null,null,null,null,null,3877,"Hattarvik"]
[null,null,null,null,null,null,null,null,null,null,null,null,null,null,null,null,null,null,null,3878,"Haraldssund"]
[null,null,null,null,null,null,null,null,null,null,null,null,null,null,null,null,null,null,null,3879,"Húsar"]
[null,null,null,null,null,null,null,null,null,null,null,null,null,null,null,null,null,null,null,3880,"Tvøroyri"]
[null,null,null,null,null,null,null,null,null,null,null,null,null,null,null,null,null,null,null,3885,"Hvalba"]
[null,null,null,null,null,null,null,null,null,null,null,null,null,null,null,null,null,null,null,3886,"Sandvik"]
[null,null,null,null,null,null,null,null,null,null,null,null,null,null,null,null,null,null,null,3887,"Fámjin"]
[null,null,null,null,null,null,null,null,null,null,null,null,null,null,null,null,null,null,null,3890,"Vágur"]
[null,null,null,null,null,null,null,null,null,null,null,null,null,null,null,null,null,null,null,3895,"Porkeri"]
[null,null,null,null,null,null,null,null,null,null,null,null,null,null,null,null,null,null,null,3896,"Hov"]
[null,null,null,null,null,null,null,null,null,null,null,null,null,null,null,null,null,null,null,3897,"Sumba"]
[null,null,null,null,null,null,null,null,null,null,null,null,null,null,null,null,null,null,null,3900,"Nuuk"]
[null,null,null,null,null,null,null,null,null,null,null,null,null,null,null,null,null,null,null,3905,"Nuussuaq"]
[null,null,null,null,null,null,null,null,null,null,null,null,null,null,null,null,null,null,null,3910,"Kangerlussuaq"]
[null,null,null,null,null,null,null,null,null,null,null,null,null,null,null,null,null,null,null,3911,"Sisimut"]
[null,null,null,null,null,null,null,null,null,null,null,null,null,null,null,null,null,null,null,3912,"Maniitsoq"]
[null,null,null,null,null,null,null,null,null,null,null,null,null,null,null,null,null,null,null,3913,"Ammassalik"]
[null,null,null,null,null,null,null,null,null,null,null,null,null,null,null,null,null,null,null,3915,"Kulusuk"]
[null,null,null,null,null,null,null,null,null,null,null,null,null,null,null,null,null,null,null,3920,"Qaqortoq"]
[null,null,null,null,null,null,null,null,null,null,null,null,null,null,null,null,null,null,null,3921,"Narssaq"]
[null,null,null,null,null,null,null,null,null,null,null,null,null,null,null,null,null,null,null,3922,"Nanortalik"]
[null,null,null,null,null,null,null,null,null,null,null,null,null,null,null,null,null,null,null,3923,"Nasarsuaq"]
[null,null,null,null,null,null,null,null,null,null,null,null,null,null,null,null,null,null,null,3924,"Ikerasassuaq"]
[null,null,null,null,null,null,null,null,null,null,null,null,null,null,null,null,null,null,null,3927,"Angisoq"]
[null,null,null,null,null,null,null,null,null,null,null,null,null,null,null,null,null,null,null,3930,"Kangilinnguit"]
[null,null,null,null,null,null,null,null,null,null,null,null,null,null,null,null,null,null,null,3932,"Arsuk"]
[null,null,null,null,null,null,null,null,null,null,null,null,null,null,null,null,null,null,null,3940,"Paamiut"]
[null,null,null,null,null,null,null,null,null,null,null,null,null,null,null,null,null,null,null,3950,"Aasiaat"]
[null,null,null,null,null,null,null,null,null,null,null,null,null,null,null,null,null,null,null,3951,"Qasigiannguit"]
[null,null,null,null,null,null,null,null,null,null,null,null,null,null,null,null,null,null,null,3952,"Ilulissat"]
[null,null,null,null,null,null,null,null,null,null,null,null,null,null,null,null,null,null,null,3953,"Qeqertarsuaq"]
[null,null,null,null,null,null,null,null,null,null,null,null,null,null,null,null,null,null,null,3955,"Kangaasiaq"]
[null,null,null,null,null,null,null,null,null,null,null,null,null,null,null,null,null,null,null,3961,"Uummannaq"]
[null,null,null,null,null,null,null,null,null,null,null,null,null,null,null,null,null,null,null,3962,"Upernavik"]
[null,null,null,null,null,null,null,null,null,null,null,null,null,null,null,null,null,null,null,3970,"Pituffik"]
[null,null,null,null,null,null,null,null,null,null,null,null,null,null,null,null,null,null,null,3971,"Qaanaaq"]
[null,null,null,null,null,null,null,null,null,null,null,null,null,null,null,null,null,null,null,3980,"Ittoqqortoormiit"]
[null,null,null,null,null,null,null,null,null,null,null,null,null,null,null,null,null,null,null,3984,"Danmarkshavn"]
[null,null,null,null,null,null,null,null,null,null,null,null,null,null,null,null,null,null,null,3985,"Constable Pynt"]
[null,null,null,null,null,null,null,null,null,null,null,null,null,null,null,null,null,null,null,3992,"Slædepatruljen Sirius"]
[null,null,null,null,null,null,null,null,null,null,null,null,null,null,null,null,null,null,null,4000,"Roskilde"]
[null,null,null,null,null,null,null,null,null,null,null,null,null,null,null,null,null,null,null,4040,"Jyllinge"]
[null,null,null,null,null,null,null,null,null,null,null,null,null,null,null,null,null,null,null,4050,"Skibby"]
[null,null,null,null,null,null,null,null,null,null,null,null,null,null,null,null,null,null,null,4060,"Kirke Såby"]
[null,null,null,null,null,null,null,null,null,null,null,null,null,null,null,null,null,null,null,4070,"Kirke Hyllinge"]
[null,null,null,null,null,null,null,null,null,null,null,null,null,null,null,null,null,null,null,4100,"Ringsted"]
[null,null,null,null,null,null,null,null,null,null,null,null,null,null,null,null,null,null,null,4130,"Viby Sjælland"]
[null,null,null,null,null,null,null,null,null,null,null,null,null,null,null,null,null,null,null,4140,"Borup"]
[null,null,null,null,null,null,null,null,null,null,null,null,null,null,null,null,null,null,null,4160,"Herlufmagle"]
[null,null,null,null,null,null,null,null,null,null,null,null,null,null,null,null,null,null,null,4171,"Glumsø"]
[null,null,null,null,null,null,null,null,null,null,null,null,null,null,null,null,null,null,null,4173,"Fjenneslev"]
[null,null,null,null,null,null,null,null,null,null,null,null,null,null,null,null,null,null,null,4174,"Jystrup Midtsj"]
[null,null,null,null,null,null,null,null,null,null,null,null,null,null,null,null,null,null,null,4180,"Sorø"]
[null,null,null,null,null,null,null,null,null,null,null,null,null,null,null,null,null,null,null,4190,"Munke Bjergby"]
[null,null,null,null,null,null,null,null,null,null,null,null,null,null,null,null,null,null,null,4200,"Slagelse"]
[null,null,null,null,null,null,null,null,null,null,null,null,null,null,null,null,null,null,null,4220,"Korsør"]
[null,null,null,null,null,null,null,null,null,null,null,null,null,null,null,null,null,null,null,4230,"Skælskør"]
[null,null,null,null,null,null,null,null,null,null,null,null,null,null,null,null,null,null,null,4241,"Vemmelev"]
[null,null,null,null,null,null,null,null,null,null,null,null,null,null,null,null,null,null,null,4242,"Boeslunde"]
[null,null,null,null,null,null,null,null,null,null,null,null,null,null,null,null,null,null,null,4243,"Rude"]
[null,null,null,null,null,null,null,null,null,null,null,null,null,null,null,null,null,null,null,4250,"Fuglebjerg"]
[null,null,null,null,null,null,null,null,null,null,null,null,null,null,null,null,null,null,null,4261,"Dalmose"]
[null,null,null,null,null,null,null,null,null,null,null,null,null,null,null,null,null,null,null,4262,"Sandved"]
[null,null,null,null,null,null,null,null,null,null,null,null,null,null,null,null,null,null,null,4270,"Høng"]
[null,null,null,null,null,null,null,null,null,null,null,null,null,null,null,null,null,null,null,4281,"Gørlev"]
[null,null,null,null,null,null,null,null,null,null,null,null,null,null,null,null,null,null,null,4291,"Ruds Vedby"]
[null,null,null,null,null,null,null,null,null,null,null,null,null,null,null,null,null,null,null,4293,"Dianalund"]
[null,null,null,null,null,null,null,null,null,null,null,null,null,null,null,null,null,null,null,4295,"Stenlille"]
[null,null,null,null,null,null,null,null,null,null,null,null,null,null,null,null,null,null,null,4296,"Nyrup"]
[null,null,null,null,null,null,null,null,null,null,null,null,null,null,null,null,null,null,null,4300,"Holbæk"]
[null,null,null,null,null,null,null,null,null,null,null,null,null,null,null,null,null,null,null,4305,"Orø"]
[null,null,null,null,null,null,null,null,null,null,null,null,null,null,null,null,null,null,null,4320,"Lejre"]
[null,null,null,null,null,null,null,null,null,null,null,null,null,null,null,null,null,null,null,4330,"Hvalsø"]
[null,null,null,null,null,null,null,null,null,null,null,null,null,null,null,null,null,null,null,4340,"Tølløse"]
[null,null,null,null,null,null,null,null,null,null,null,null,null,null,null,null,null,null,null,4350,"Ugerløse"]
[null,null,null,null,null,null,null,null,null,null,null,null,null,null,null,null,null,null,null,4360,"Kirke Eskilstrup"]
[null,null,null,null,null,null,null,null,null,null,null,null,null,null,null,null,null,null,null,4370,"Store Merløse"]
[null,null,null,null,null,null,null,null,null,null,null,null,null,null,null,null,null,null,null,4390,"Vipperød"]
[null,null,null,null,null,null,null,null,null,null,null,null,null,null,null,null,null,null,null,4400,"Kalundborg"]
[null,null,null,null,null,null,null,null,null,null,null,null,null,null,null,null,null,null,null,4420,"Regstrup"]
[null,null,null,null,null,null,null,null,null,null,null,null,null,null,null,null,null,null,null,4440,"Mørkøv"]
[null,null,null,null,null,null,null,null,null,null,null,null,null,null,null,null,null,null,null,4450,"Jyderup"]
[null,null,null,null,null,null,null,null,null,null,null,null,null,null,null,null,null,null,null,4460,"Snertinge"]
[null,null,null,null,null,null,null,null,null,null,null,null,null,null,null,null,null,null,null,4470,"Svebølle"]
[null,null,null,null,null,null,null,null,null,null,null,null,null,null,null,null,null,null,null,4480,"Store Fuglede"]
[null,null,null,null,null,null,null,null,null,null,null,null,null,null,null,null,null,null,null,4490,"Jerslev Sjælland"]
[null,null,null,null,null,null,null,null,null,null,null,null,null,null,null,null,null,null,null,4500,"Nykøbing Sj."]
[null,null,null,null,null,null,null,null,null,null,null,null,null,null,null,null,null,null,null,4520,"Svinninge"]
[null,null,null,null,null,null,null,null,null,null,null,null,null,null,null,null,null,null,null,4532,"Gislinge"]
[null,null,null,null,null,null,null,null,null,null,null,null,null,null,null,null,null,null,null,4534,"Hørve"]
[null,null,null,null,null,null,null,null,null,null,null,null,null,null,null,null,null,null,null,4540,"Fårevejle"]
[null,null,null,null,null,null,null,null,null,null,null,null,null,null,null,null,null,null,null,4550,"Asnæs"]
[null,null,null,null,null,null,null,null,null,null,null,null,null,null,null,null,null,null,null,4560,"Vig"]
[null,null,null,null,null,null,null,null,null,null,null,null,null,null,null,null,null,null,null,4571,"Grevinge"]
[null,null,null,null,null,null,null,null,null,null,null,null,null,null,null,null,null,null,null,4572,"Nørre Asmindrup"]
[null,null,null,null,null,null,null,null,null,null,null,null,null,null,null,null,null,null,null,4573,"Højby"]
[null,null,null,null,null,null,null,null,null,null,null,null,null,null,null,null,null,null,null,4581,"Rørvig"]
[null,null,null,null,null,null,null,null,null,null,null,null,null,null,null,null,null,null,null,4583,"Sjællands Odde"]
[null,null,null,null,null,null,null,null,null,null,null,null,null,null,null,null,null,null,null,4591,"Føllenslev"]
[null,null,null,null,null,null,null,null,null,null,null,null,null,null,null,null,null,null,null,4592,"Sejerø"]
[null,null,null,null,null,null,null,null,null,null,null,null,null,null,null,null,null,null,null,4593,"Eskebjerg"]
[null,null,null,null,null,null,null,null,null,null,null,null,null,null,null,null,null,null,null,4600,"Køge"]
[null,null,null,null,null,null,null,null,null,null,null,null,null,null,null,null,null,null,null,4621,"Gadstrup"]
[null,null,null,null,null,null,null,null,null,null,null,null,null,null,null,null,null,null,null,4622,"Havdrup"]
[null,null,null,null,null,null,null,null,null,null,null,null,null,null,null,null,null,null,null,4623,"Lille Skensved"]
[null,null,null,null,null,null,null,null,null,null,null,null,null,null,null,null,null,null,null,4632,"Bjæverskov"]
[null,null,null,null,null,null,null,null,null,null,null,null,null,null,null,null,null,null,null,4640,"Fakse"]
[null,null,null,null,null,null,null,null,null,null,null,null,null,null,null,null,null,null,null,4652,"Hårlev"]
[null,null,null,null,null,null,null,null,null,null,null,null,null,null,null,null,null,null,null,4653,"Karise"]
[null,null,null,null,null,null,null,null,null,null,null,null,null,null,null,null,null,null,null,4654,"Fakse Ladeplads"]
[null,null,null,null,null,null,null,null,null,null,null,null,null,null,null,null,null,null,null,4660,"Store Heddinge"]
[null,null,null,null,null,null,null,null,null,null,null,null,null,null,null,null,null,null,null,4671,"Strøby"]
[null,null,null,null,null,null,null,null,null,null,null,null,null,null,null,null,null,null,null,4672,"Klippinge"]
[null,null,null,null,null,null,null,null,null,null,null,null,null,null,null,null,null,null,null,4673,"Rødvig Stevns"]
[null,null,null,null,null,null,null,null,null,null,null,null,null,null,null,null,null,null,null,4681,"Herfølge"]
[null,null,null,null,null,null,null,null,null,null,null,null,null,null,null,null,null,null,null,4682,"Tureby"]
[null,null,null,null,null,null,null,null,null,null,null,null,null,null,null,null,null,null,null,4683,"Rønnede"]
[null,null,null,null,null,null,null,null,null,null,null,null,null,null,null,null,null,null,null,4684,"Holme-Olstrup"]
[null,null,null,null,null,null,null,null,null,null,null,null,null,null,null,null,null,null,null,4690,"Haslev"]
[null,null,null,null,null,null,null,null,null,null,null,null,null,null,null,null,null,null,null,4700,"Næstved"]
[null,null,null,null,null,null,null,null,null,null,null,null,null,null,null,null,null,null,null,4720,"Præstø"]
[null,null,null,null,null,null,null,null,null,null,null,null,null,null,null,null,null,null,null,4733,"Tappernøje"]
[null,null,null,null,null,null,null,null,null,null,null,null,null,null,null,null,null,null,null,4735,"Mern"]
[null,null,null,null,null,null,null,null,null,null,null,null,null,null,null,null,null,null,null,4736,"Karrebæksminde"]
[null,null,null,null,null,null,null,null,null,null,null,null,null,null,null,null,null,null,null,4750,"Lundby"]
[null,null,null,null,null,null,null,null,null,null,null,null,null,null,null,null,null,null,null,4760,"Vordingborg"]
[null,null,null,null,null,null,null,null,null,null,null,null,null,null,null,null,null,null,null,4771,"Kalvehave"]
[null,null,null,null,null,null,null,null,null,null,null,null,null,null,null,null,null,null,null,4772,"Langebæk"]
[null,null,null,null,null,null,null,null,null,null,null,null,null,null,null,null,null,null,null,4773,"Stensved"]
[null,null,null,null,null,null,null,null,null,null,null,null,null,null,null,null,null,null,null,4780,"Stege"]
[null,null,null,null,null,null,null,null,null,null,null,null,null,null,null,null,null,null,null,4791,"Borre"]
[null,null,null,null,null,null,null,null,null,null,null,null,null,null,null,null,null,null,null,4792,"Askeby"]
[null,null,null,null,null,null,null,null,null,null,null,null,null,null,null,null,null,null,null,4793,"Bogø By"]
[null,null,null,null,null,null,null,null,null,null,null,null,null,null,null,null,null,null,null,4800,"Nykøbing F"]
[null,null,null,null,null,null,null,null,null,null,null,null,null,null,null,null,null,null,null,4840,"Nørre Alslev"]
[null,null,null,null,null,null,null,null,null,null,null,null,null,null,null,null,null,null,null,4850,"Stubbekøbing"]
[null,null,null,null,null,null,null,null,null,null,null,null,null,null,null,null,null,null,null,4862,"Guldborg"]
[null,null,null,null,null,null,null,null,null,null,null,null,null,null,null,null,null,null,null,4863,"Eskilstrup"]
[null,null,null,null,null,null,null,null,null,null,null,null,null,null,null,null,null,null,null,4871,"Horbelev"]
[null,null,null,null,null,null,null,null,null,null,null,null,null,null,null,null,null,null,null,4872,"Idestrup"]
[null,null,null,null,null,null,null,null,null,null,null,null,null,null,null,null,null,null,null,4873,"Væggerløse"]
[null,null,null,null,null,null,null,null,null,null,null,null,null,null,null,null,null,null,null,4874,"Gedser"]
[null,null,null,null,null,null,null,null,null,null,null,null,null,null,null,null,null,null,null,4880,"Nysted"]
[null,null,null,null,null,null,null,null,null,null,null,null,null,null,null,null,null,null,null,4891,"Toreby L"]
[null,null,null,null,null,null,null,null,null,null,null,null,null,null,null,null,null,null,null,4892,"Kettinge"]
[null,null,null,null,null,null,null,null,null,null,null,null,null,null,null,null,null,null,null,4894,"Øster Ulslev"]
[null,null,null,null,null,null,null,null,null,null,null,null,null,null,null,null,null,null,null,4895,"Errindlev"]
[null,null,null,null,null,null,null,null,null,null,null,null,null,null,null,null,null,null,null,4900,"Nakskov"]
[null,null,null,null,null,null,null,null,null,null,null,null,null,null,null,null,null,null,null,4912,"Harpelunde"]
[null,null,null,null,null,null,null,null,null,null,null,null,null,null,null,null,null,null,null,4913,"Horslunde"]
[null,null,null,null,null,null,null,null,null,null,null,null,null,null,null,null,null,null,null,4920,"Søllested"]
[null,null,null,null,null,null,null,null,null,null,null,null,null,null,null,null,null,null,null,4930,"Maribo"]
[null,null,null,null,null,null,null,null,null,null,null,null,null,null,null,null,null,null,null,4941,"Bandholm"]
[null,null,null,null,null,null,null,null,null,null,null,null,null,null,null,null,null,null,null,4943,"Torrig L"]
[null,null,null,null,null,null,null,null,null,null,null,null,null,null,null,null,null,null,null,4944,"Fejø"]
[null,null,null,null,null,null,null,null,null,null,null,null,null,null,null,null,null,null,null,4951,"Nørreballe"]
[null,null,null,null,null,null,null,null,null,null,null,null,null,null,null,null,null,null,null,4952,"Stokkemarke"]
[null,null,null,null,null,null,null,null,null,null,null,null,null,null,null,null,null,null,null,4953,"Vesterborg"]
[null,null,null,null,null,null,null,null,null,null,null,null,null,null,null,null,null,null,null,4960,"Holeby"]
[null,null,null,null,null,null,null,null,null,null,null,null,null,null,null,null,null,null,null,4970,"Rødby"]
[null,null,null,null,null,null,null,null,null,null,null,null,null,null,null,null,null,null,null,4983,"Dannemare"]
[null,null,null,null,null,null,null,null,null,null,null,null,null,null,null,null,null,null,null,4990,"Sakskøbing"]
[null,null,null,null,null,null,null,null,null,null,null,null,null,null,null,null,null,null,null,5000,"Odense C"]
[null,null,null,null,null,null,null,null,null,null,null,null,null,null,null,null,null,null,null,5100,"Odense C"]
[null,null,null,null,null,null,null,null,null,null,null,null,null,null,null,null,null,null,null,5200,"Odense V"]
[null,null,null,null,null,null,null,null,null,null,null,null,null,null,null,null,null,null,null,5210,"Odense NV"]
[null,null,null,null,null,null,null,null,null,null,null,null,null,null,null,null,null,null,null,5220,"Odense SØ"]
[null,null,null,null,null,null,null,null,null,null,null,null,null,null,null,null,null,null,null,5230,"Odense M"]
[null,null,null,null,null,null,null,null,null,null,null,null,null,null,null,null,null,null,null,5240,"Odense NØ"]
[null,null,null,null,null,null,null,null,null,null,null,null,null,null,null,null,null,null,null,5250,"Odense SV"]
[null,null,null,null,null,null,null,null,null,null,null,null,null,null,null,null,null,null,null,5260,"Odense S"]
[null,null,null,null,null,null,null,null,null,null,null,null,null,null,null,null,null,null,null,5270,"Odense N"]
[null,null,null,null,null,null,null,null,null,null,null,null,null,null,null,null,null,null,null,5290,"Marslev"]
[null,null,null,null,null,null,null,null,null,null,null,null,null,null,null,null,null,null,null,5300,"Kerteminde"]
[null,null,null,null,null,null,null,null,null,null,null,null,null,null,null,null,null,null,null,5320,"Agedrup"]
[null,null,null,null,null,null,null,null,null,null,null,null,null,null,null,null,null,null,null,5330,"Munkebo"]
[null,null,null,null,null,null,null,null,null,null,null,null,null,null,null,null,null,null,null,5350,"Rynkeby"]
[null,null,null,null,null,null,null,null,null,null,null,null,null,null,null,null,null,null,null,5370,"Mesinge Fyn"]
[null,null,null,null,null,null,null,null,null,null,null,null,null,null,null,null,null,null,null,5380,"Dalby"]
[null,null,null,null,null,null,null,null,null,null,null,null,null,null,null,null,null,null,null,5390,"Martofte"]
[null,null,null,null,null,null,null,null,null,null,null,null,null,null,null,null,null,null,null,5400,"Bogense"]
[null,null,null,null,null,null,null,null,null,null,null,null,null,null,null,null,null,null,null,5450,"Otterup"]
[null,null,null,null,null,null,null,null,null,null,null,null,null,null,null,null,null,null,null,5462,"Morud"]
[null,null,null,null,null,null,null,null,null,null,null,null,null,null,null,null,null,null,null,5463,"Harndrup"]
[null,null,null,null,null,null,null,null,null,null,null,null,null,null,null,null,null,null,null,5464,"Brenderup Fyn"]
[null,null,null,null,null,null,null,null,null,null,null,null,null,null,null,null,null,null,null,5466,"Asperup"]
[null,null,null,null,null,null,null,null,null,null,null,null,null,null,null,null,null,null,null,5471,"Søndersø"]
[null,null,null,null,null,null,null,null,null,null,null,null,null,null,null,null,null,null,null,5474,"Veflinge"]
[null,null,null,null,null,null,null,null,null,null,null,null,null,null,null,null,null,null,null,5485,"Skamby"]
[null,null,null,null,null,null,null,null,null,null,null,null,null,null,null,null,null,null,null,5491,"Blommenslyst"]
[null,null,null,null,null,null,null,null,null,null,null,null,null,null,null,null,null,null,null,5492,"Vissenbjerg"]
[null,null,null,null,null,null,null,null,null,null,null,null,null,null,null,null,null,null,null,5500,"Middelfart"]
[null,null,null,null,null,null,null,null,null,null,null,null,null,null,null,null,null,null,null,5540,"Ullerslev"]
[null,null,null,null,null,null,null,null,null,null,null,null,null,null,null,null,null,null,null,5550,"Langeskov"]
[null,null,null,null,null,null,null,null,null,null,null,null,null,null,null,null,null,null,null,5560,"Aarup"]
[null,null,null,null,null,null,null,null,null,null,null,null,null,null,null,null,null,null,null,5580,"Nørre Aaby"]
[null,null,null,null,null,null,null,null,null,null,null,null,null,null,null,null,null,null,null,5591,"Gelsted"]
[null,null,null,null,null,null,null,null,null,null,null,null,null,null,null,null,null,null,null,5592,"Ejby"]
[null,null,null,null,null,null,null,null,null,null,null,null,null,null,null,null,null,null,null,5600,"Faaborg"]
[null,null,null,null,null,null,null,null,null,null,null,null,null,null,null,null,null,null,null,5610,"Assens"]
[null,null,null,null,null,null,null,null,null,null,null,null,null,null,null,null,null,null,null,5620,"Glamsbjerg"]
[null,null,null,null,null,null,null,null,null,null,null,null,null,null,null,null,null,null,null,5631,"Ebberup"]
[null,null,null,null,null,null,null,null,null,null,null,null,null,null,null,null,null,null,null,5642,"Millinge"]
[null,null,null,null,null,null,null,null,null,null,null,null,null,null,null,null,null,null,null,5672,"Broby"]
[null,null,null,null,null,null,null,null,null,null,null,null,null,null,null,null,null,null,null,5683,"Hårby"]
[null,null,null,null,null,null,null,null,null,null,null,null,null,null,null,null,null,null,null,5690,"Tommerup"]
[null,null,null,null,null,null,null,null,null,null,null,null,null,null,null,null,null,null,null,5700,"Svendborg"]
[null,null,null,null,null,null,null,null,null,null,null,null,null,null,null,null,null,null,null,5750,"Ringe"]
[null,null,null,null,null,null,null,null,null,null,null,null,null,null,null,null,null,null,null,5762,"Vester Skerninge"]
[null,null,null,null,null,null,null,null,null,null,null,null,null,null,null,null,null,null,null,5771,"Stenstrup"]
[null,null,null,null,null,null,null,null,null,null,null,null,null,null,null,null,null,null,null,5772,"Kværndrup"]
[null,null,null,null,null,null,null,null,null,null,null,null,null,null,null,null,null,null,null,5792,"Årslev"]
[null,null,null,null,null,null,null,null,null,null,null,null,null,null,null,null,null,null,null,5800,"Nyborg"]
[null,null,null,null,null,null,null,null,null,null,null,null,null,null,null,null,null,null,null,5853,"Ørbæk"]
[null,null,null,null,null,null,null,null,null,null,null,null,null,null,null,null,null,null,null,5854,"Gislev"]
[null,null,null,null,null,null,null,null,null,null,null,null,null,null,null,null,null,null,null,5856,"Ryslinge"]
[null,null,null,null,null,null,null,null,null,null,null,null,null,null,null,null,null,null,null,5863,"Ferritslev Fyn"]
[null,null,null,null,null,null,null,null,null,null,null,null,null,null,null,null,null,null,null,5871,"Frørup"]
[null,null,null,null,null,null,null,null,null,null,null,null,null,null,null,null,null,null,null,5874,"Hesselager"]
[null,null,null,null,null,null,null,null,null,null,null,null,null,null,null,null,null,null,null,5881,"Skårup Fyn"]
[null,null,null,null,null,null,null,null,null,null,null,null,null,null,null,null,null,null,null,5882,"Vejstrup"]
[null,null,null,null,null,null,null,null,null,null,null,null,null,null,null,null,null,null,null,5883,"Oure"]
[null,null,null,null,null,null,null,null,null,null,null,null,null,null,null,null,null,null,null,5884,"Gudme"]
[null,null,null,null,null,null,null,null,null,null,null,null,null,null,null,null,null,null,null,5892,"Gudbjerg Sydfyn"]
[null,null,null,null,null,null,null,null,null,null,null,null,null,null,null,null,null,null,null,5900,"Rudkøbing"]
[null,null,null,null,null,null,null,null,null,null,null,null,null,null,null,null,null,null,null,5932,"Humble"]
[null,null,null,null,null,null,null,null,null,null,null,null,null,null,null,null,null,null,null,5935,"Bagenkop"]
[null,null,null,null,null,null,null,null,null,null,null,null,null,null,null,null,null,null,null,5953,"Tranekær"]
[null,null,null,null,null,null,null,null,null,null,null,null,null,null,null,null,null,null,null,5960,"Marstal"]
[null,null,null,null,null,null,null,null,null,null,null,null,null,null,null,null,null,null,null,5970,"Ærøskøbing"]
[null,null,null,null,null,null,null,null,null,null,null,null,null,null,null,null,null,null,null,5985,"Søby Ærø"]
[null,null,null,null,null,null,null,null,null,null,null,null,null,null,null,null,null,null,null,6000,"Kolding"]
[null,null,null,null,null,null,null,null,null,null,null,null,null,null,null,null,null,null,null,6040,"Egtved"]
[null,null,null,null,null,null,null,null,null,null,null,null,null,null,null,null,null,null,null,6051,"Almind"]
[null,null,null,null,null,null,null,null,null,null,null,null,null,null,null,null,null,null,null,6052,"Viuf"]
[null,null,null,null,null,null,null,null,null,null,null,null,null,null,null,null,null,null,null,6064,"Jordrup"]
[null,null,null,null,null,null,null,null,null,null,null,null,null,null,null,null,null,null,null,6070,"Christiansfeld"]
[null,null,null,null,null,null,null,null,null,null,null,null,null,null,null,null,null,null,null,6091,"Bjert"]
[null,null,null,null,null,null,null,null,null,null,null,null,null,null,null,null,null,null,null,6092,"Varmark"]
[null,null,null,null,null,null,null,null,null,null,null,null,null,null,null,null,null,null,null,6093,"Sjølund"]
[null,null,null,null,null,null,null,null,null,null,null,null,null,null,null,null,null,null,null,6094,"Hejls"]
[null,null,null,null,null,null,null,null,null,null,null,null,null,null,null,null,null,null,null,6100,"Haderslev"]
[null,null,null,null,null,null,null,null,null,null,null,null,null,null,null,null,null,null,null,6200,"Aabenraa"]
[null,null,null,null,null,null,null,null,null,null,null,null,null,null,null,null,null,null,null,6230,"Rødekro"]
[null,null,null,null,null,null,null,null,null,null,null,null,null,null,null,null,null,null,null,6240,"Løgumkloster"]
[null,null,null,null,null,null,null,null,null,null,null,null,null,null,null,null,null,null,null,6261,"Bredebro"]
[null,null,null,null,null,null,null,null,null,null,null,null,null,null,null,null,null,null,null,6270,"Tønder"]
[null,null,null,null,null,null,null,null,null,null,null,null,null,null,null,null,null,null,null,6280,"Højer"]
[null,null,null,null,null,null,null,null,null,null,null,null,null,null,null,null,null,null,null,6300,"Gråsten"]
[null,null,null,null,null,null,null,null,null,null,null,null,null,null,null,null,null,null,null,6310,"Broager"]
[null,null,null,null,null,null,null,null,null,null,null,null,null,null,null,null,null,null,null,6320,"Egernsund"]
[null,null,null,null,null,null,null,null,null,null,null,null,null,null,null,null,null,null,null,6330,"Padborg"]
[null,null,null,null,null,null,null,null,null,null,null,null,null,null,null,null,null,null,null,6340,"Kruså"]
[null,null,null,null,null,null,null,null,null,null,null,null,null,null,null,null,null,null,null,6360,"Tinglev"]
[null,null,null,null,null,null,null,null,null,null,null,null,null,null,null,null,null,null,null,6372,"Bylderup-Bov"]
[null,null,null,null,null,null,null,null,null,null,null,null,null,null,null,null,null,null,null,6392,"Bolderslev"]
[null,null,null,null,null,null,null,null,null,null,null,null,null,null,null,null,null,null,null,6400,"Sønderborg"]
[null,null,null,null,null,null,null,null,null,null,null,null,null,null,null,null,null,null,null,6430,"Nordborg"]
[null,null,null,null,null,null,null,null,null,null,null,null,null,null,null,null,null,null,null,6440,"Augustenborg"]
[null,null,null,null,null,null,null,null,null,null,null,null,null,null,null,null,null,null,null,6470,"Sydals"]
[null,null,null,null,null,null,null,null,null,null,null,null,null,null,null,null,null,null,null,6500,"Vojens"]
[null,null,null,null,null,null,null,null,null,null,null,null,null,null,null,null,null,null,null,6510,"Gram"]
[null,null,null,null,null,null,null,null,null,null,null,null,null,null,null,null,null,null,null,6520,"Toftlund"]
[null,null,null,null,null,null,null,null,null,null,null,null,null,null,null,null,null,null,null,6534,"Agerskov"]
[null,null,null,null,null,null,null,null,null,null,null,null,null,null,null,null,null,null,null,6535,"Branderup J"]
[null,null,null,null,null,null,null,null,null,null,null,null,null,null,null,null,null,null,null,6541,"Bevtoft"]
[null,null,null,null,null,null,null,null,null,null,null,null,null,null,null,null,null,null,null,6560,"Sommersted"]
[null,null,null,null,null,null,null,null,null,null,null,null,null,null,null,null,null,null,null,6580,"Vamdrup"]
[null,null,null,null,null,null,null,null,null,null,null,null,null,null,null,null,null,null,null,6600,"Vejen"]
[null,null,null,null,null,null,null,null,null,null,null,null,null,null,null,null,null,null,null,6621,"Gesten"]
[null,null,null,null,null,null,null,null,null,null,null,null,null,null,null,null,null,null,null,6622,"Bække"]
[null,null,null,null,null,null,null,null,null,null,null,null,null,null,null,null,null,null,null,6623,"Vorbasse"]
[null,null,null,null,null,null,null,null,null,null,null,null,null,null,null,null,null,null,null,6630,"Rødding"]
[null,null,null,null,null,null,null,null,null,null,null,null,null,null,null,null,null,null,null,6640,"Lunderskov"]
[null,null,null,null,null,null,null,null,null,null,null,null,null,null,null,null,null,null,null,6650,"Brørup"]
[null,null,null,null,null,null,null,null,null,null,null,null,null,null,null,null,null,null,null,6660,"Lintrup"]
[null,null,null,null,null,null,null,null,null,null,null,null,null,null,null,null,null,null,null,6670,"Holsted"]
[null,null,null,null,null,null,null,null,null,null,null,null,null,null,null,null,null,null,null,6682,"Hovborg"]
[null,null,null,null,null,null,null,null,null,null,null,null,null,null,null,null,null,null,null,6683,"Føvling"]
[null,null,null,null,null,null,null,null,null,null,null,null,null,null,null,null,null,null,null,6690,"Gørding"]
[null,null,null,null,null,null,null,null,null,null,null,null,null,null,null,null,null,null,null,6700,"Esbjerg"]
[null,null,null,null,null,null,null,null,null,null,null,null,null,null,null,null,null,null,null,6701,"Esbjerg"]
[null,null,null,null,null,null,null,null,null,null,null,null,null,null,null,null,null,null,null,6705,"Esbjerg Ø"]
[null,null,null,null,null,null,null,null,null,null,null,null,null,null,null,null,null,null,null,6710,"Esbjerg V"]
[null,null,null,null,null,null,null,null,null,null,null,null,null,null,null,null,null,null,null,6715,"Esbjerg N"]
[null,null,null,null,null,null,null,null,null,null,null,null,null,null,null,null,null,null,null,6720,"Fanø"]
[null,null,null,null,null,null,null,null,null,null,null,null,null,null,null,null,null,null,null,6731,"Tjæreborg"]
[null,null,null,null,null,null,null,null,null,null,null,null,null,null,null,null,null,null,null,6740,"Bramming"]
[null,null,null,null,null,null,null,null,null,null,null,null,null,null,null,null,null,null,null,6752,"Glejbjerg"]
[null,null,null,null,null,null,null,null,null,null,null,null,null,null,null,null,null,null,null,6753,"Agerbæk"]
[null,null,null,null,null,null,null,null,null,null,null,null,null,null,null,null,null,null,null,6760,"Ribe"]
[null,null,null,null,null,null,null,null,null,null,null,null,null,null,null,null,null,null,null,6771,"Gredstedbro"]
[null,null,null,null,null,null,null,null,null,null,null,null,null,null,null,null,null,null,null,6780,"Skærbæk"]
[null,null,null,null,null,null,null,null,null,null,null,null,null,null,null,null,null,null,null,6792,"Rømø"]
[null,null,null,null,null,null,null,null,null,null,null,null,null,null,null,null,null,null,null,6800,"Varde"]
[null,null,null,null,null,null,null,null,null,null,null,null,null,null,null,null,null,null,null,6818,"Årre"]
[null,null,null,null,null,null,null,null,null,null,null,null,null,null,null,null,null,null,null,6823,"Ansager"]
[null,null,null,null,null,null,null,null,null,null,null,null,null,null,null,null,null,null,null,6830,"Nørre Nebel"]
[null,null,null,null,null,null,null,null,null,null,null,null,null,null,null,null,null,null,null,6840,"Oksbøl"]
[null,null,null,null,null,null,null,null,null,null,null,null,null,null,null,null,null,null,null,6851,"Janderup Vestj"]
[null,null,null,null,null,null,null,null,null,null,null,null,null,null,null,null,null,null,null,6852,"Billum"]
[null,null,null,null,null,null,null,null,null,null,null,null,null,null,null,null,null,null,null,6853,"Vejers Strand"]
[null,null,null,null,null,null,null,null,null,null,null,null,null,null,null,null,null,null,null,6854,"Henne"]
[null,null,null,null,null,null,null,null,null,null,null,null,null,null,null,null,null,null,null,6855,"Ovtrup"]
[null,null,null,null,null,null,null,null,null,null,null,null,null,null,null,null,null,null,null,6857,"Blåvand"]
[null,null,null,null,null,null,null,null,null,null,null,null,null,null,null,null,null,null,null,6862,"Tistrup"]
[null,null,null,null,null,null,null,null,null,null,null,null,null,null,null,null,null,null,null,6870,"Ølgod"]
[null,null,null,null,null,null,null,null,null,null,null,null,null,null,null,null,null,null,null,6880,"Tarm"]
[null,null,null,null,null,null,null,null,null,null,null,null,null,null,null,null,null,null,null,6893,"Hemmet"]
[null,null,null,null,null,null,null,null,null,null,null,null,null,null,null,null,null,null,null,6900,"Skjern"]
[null,null,null,null,null,null,null,null,null,null,null,null,null,null,null,null,null,null,null,6920,"Videbæk"]
[null,null,null,null,null,null,null,null,null,null,null,null,null,null,null,null,null,null,null,6933,"Kibæk"]
[null,null,null,null,null,null,null,null,null,null,null,null,null,null,null,null,null,null,null,6940,"Lem St"]
[null,null,null,null,null,null,null,null,null,null,null,null,null,null,null,null,null,null,null,6950,"Ringkøbing"]
[null,null,null,null,null,null,null,null,null,null,null,null,null,null,null,null,null,null,null,6960,"Hvide Sande"]
[null,null,null,null,null,null,null,null,null,null,null,null,null,null,null,null,null,null,null,6971,"Spjald"]
[null,null,null,null,null,null,null,null,null,null,null,null,null,null,null,null,null,null,null,6973,"Ørnhøj"]
[null,null,null,null,null,null,null,null,null,null,null,null,null,null,null,null,null,null,null,6980,"Tim"]
[null,null,null,null,null,null,null,null,null,null,null,null,null,null,null,null,null,null,null,6990,"Ulfborg"]
[null,null,null,null,null,null,null,null,null,null,null,null,null,null,null,null,null,null,null,7000,"Fredericia"]
[null,null,null,null,null,null,null,null,null,null,null,null,null,null,null,null,null,null,null,7080,"Børkop"]
[null,null,null,null,null,null,null,null,null,null,null,null,null,null,null,null,null,null,null,7100,"Vejle"]
[null,null,null,null,null,null,null,null,null,null,null,null,null,null,null,null,null,null,null,7120,"Vejle Øst"]
[null,null,null,null,null,null,null,null,null,null,null,null,null,null,null,null,null,null,null,7130,"Juelsminde"]
[null,null,null,null,null,null,null,null,null,null,null,null,null,null,null,null,null,null,null,7140,"Stouby"]
[null,null,null,null,null,null,null,null,null,null,null,null,null,null,null,null,null,null,null,7150,"Barrit"]
[null,null,null,null,null,null,null,null,null,null,null,null,null,null,null,null,null,null,null,7160,"Tørring"]
[null,null,null,null,null,null,null,null,null,null,null,null,null,null,null,null,null,null,null,7171,"Uldum"]
[null,null,null,null,null,null,null,null,null,null,null,null,null,null,null,null,null,null,null,7173,"Vonge"]
[null,null,null,null,null,null,null,null,null,null,null,null,null,null,null,null,null,null,null,7182,"Bredsten"]
[null,null,null,null,null,null,null,null,null,null,null,null,null,null,null,null,null,null,null,7183,"Randbøl"]
[null,null,null,null,null,null,null,null,null,null,null,null,null,null,null,null,null,null,null,7184,"Vandel"]
[null,null,null,null,null,null,null,null,null,null,null,null,null,null,null,null,null,null,null,7190,"Billund"]
[null,null,null,null,null,null,null,null,null,null,null,null,null,null,null,null,null,null,null,7200,"Grindsted"]
[null,null,null,null,null,null,null,null,null,null,null,null,null,null,null,null,null,null,null,7250,"Hejnsvig"]
[null,null,null,null,null,null,null,null,null,null,null,null,null,null,null,null,null,null,null,7260,"Sønder Omme"]
[null,null,null,null,null,null,null,null,null,null,null,null,null,null,null,null,null,null,null,7270,"Stakroge"]
[null,null,null,null,null,null,null,null,null,null,null,null,null,null,null,null,null,null,null,7280,"Sønder Felding"]
[null,null,null,null,null,null,null,null,null,null,null,null,null,null,null,null,null,null,null,7300,"Jelling"]
[null,null,null,null,null,null,null,null,null,null,null,null,null,null,null,null,null,null,null,7321,"Gadbjerg"]
[null,null,null,null,null,null,null,null,null,null,null,null,null,null,null,null,null,null,null,7323,"Give"]
[null,null,null,null,null,null,null,null,null,null,null,null,null,null,null,null,null,null,null,7330,"Brande"]
[null,null,null,null,null,null,null,null,null,null,null,null,null,null,null,null,null,null,null,7361,"Ejstrupholm"]
[null,null,null,null,null,null,null,null,null,null,null,null,null,null,null,null,null,null,null,7362,"Hampen"]
[null,null,null,null,null,null,null,null,null,null,null,null,null,null,null,null,null,null,null,7400,"Herning"]
[null,null,null,null,null,null,null,null,null,null,null,null,null,null,null,null,null,null,null,7430,"Ikast"]
[null,null,null,null,null,null,null,null,null,null,null,null,null,null,null,null,null,null,null,7441,"Bording"]
[null,null,null,null,null,null,null,null,null,null,null,null,null,null,null,null,null,null,null,7442,"Engesvang"]
[null,null,null,null,null,null,null,null,null,null,null,null,null,null,null,null,null,null,null,7451,"Sunds"]
[null,null,null,null,null,null,null,null,null,null,null,null,null,null,null,null,null,null,null,7470,"Karup J"]
[null,null,null,null,null,null,null,null,null,null,null,null,null,null,null,null,null,null,null,7480,"Vildbjerg"]
[null,null,null,null,null,null,null,null,null,null,null,null,null,null,null,null,null,null,null,7490,"Avlum"]
[null,null,null,null,null,null,null,null,null,null,null,null,null,null,null,null,null,null,null,7500,"Holstebro"]
[null,null,null,null,null,null,null,null,null,null,null,null,null,null,null,null,null,null,null,7540,"Haderup"]
[null,null,null,null,null,null,null,null,null,null,null,null,null,null,null,null,null,null,null,7550,"Sørvad"]
[null,null,null,null,null,null,null,null,null,null,null,null,null,null,null,null,null,null,null,7560,"Hjerm"]
[null,null,null,null,null,null,null,null,null,null,null,null,null,null,null,null,null,null,null,7570,"Vemb"]
[null,null,null,null,null,null,null,null,null,null,null,null,null,null,null,null,null,null,null,7600,"Struer"]
[null,null,null,null,null,null,null,null,null,null,null,null,null,null,null,null,null,null,null,7620,"Lemvig"]
[null,null,null,null,null,null,null,null,null,null,null,null,null,null,null,null,null,null,null,7650,"Bøvlingbjerg"]
[null,null,null,null,null,null,null,null,null,null,null,null,null,null,null,null,null,null,null,7660,"Bækmarksbro"]
[null,null,null,null,null,null,null,null,null,null,null,null,null,null,null,null,null,null,null,7673,"Harboøre"]
[null,null,null,null,null,null,null,null,null,null,null,null,null,null,null,null,null,null,null,7680,"Thyborøn"]
[null,null,null,null,null,null,null,null,null,null,null,null,null,null,null,null,null,null,null,7700,"Thisted"]
[null,null,null,null,null,null,null,null,null,null,null,null,null,null,null,null,null,null,null,7730,"Hanstholm"]
[null,null,null,null,null,null,null,null,null,null,null,null,null,null,null,null,null,null,null,7741,"Frøstrup"]
[null,null,null,null,null,null,null,null,null,null,null,null,null,null,null,null,null,null,null,7742,"Vesløs"]
[null,null,null,null,null,null,null,null,null,null,null,null,null,null,null,null,null,null,null,7752,"Snedsted"]
[null,null,null,null,null,null,null,null,null,null,null,null,null,null,null,null,null,null,null,7755,"Bedsted Thy"]
[null,null,null,null,null,null,null,null,null,null,null,null,null,null,null,null,null,null,null,7760,"Hurup Thy"]
[null,null,null,null,null,null,null,null,null,null,null,null,null,null,null,null,null,null,null,7770,"Vestervig"]
[null,null,null,null,null,null,null,null,null,null,null,null,null,null,null,null,null,null,null,7790,"Thyholm"]
[null,null,null,null,null,null,null,null,null,null,null,null,null,null,null,null,null,null,null,7800,"Skive"]
[null,null,null,null,null,null,null,null,null,null,null,null,null,null,null,null,null,null,null,7830,"Vinderup"]
[null,null,null,null,null,null,null,null,null,null,null,null,null,null,null,null,null,null,null,7840,"Højslev"]
[null,null,null,null,null,null,null,null,null,null,null,null,null,null,null,null,null,null,null,7850,"Stoholm Jyll."]
[null,null,null,null,null,null,null,null,null,null,null,null,null,null,null,null,null,null,null,7860,"Spøttrup"]
[null,null,null,null,null,null,null,null,null,null,null,null,null,null,null,null,null,null,null,7870,"Roslev"]
[null,null,null,null,null,null,null,null,null,null,null,null,null,null,null,null,null,null,null,7884,"Fur"]
[null,null,null,null,null,null,null,null,null,null,null,null,null,null,null,null,null,null,null,7900,"Nykøbing M"]
[null,null,null,null,null,null,null,null,null,null,null,null,null,null,null,null,null,null,null,7950,"Erslev"]
[null,null,null,null,null,null,null,null,null,null,null,null,null,null,null,null,null,null,null,7960,"Karby"]
[null,null,null,null,null,null,null,null,null,null,null,null,null,null,null,null,null,null,null,7970,"Redsted M"]
[null,null,null,null,null,null,null,null,null,null,null,null,null,null,null,null,null,null,null,7980,"Vils"]
[null,null,null,null,null,null,null,null,null,null,null,null,null,null,null,null,null,null,null,7990,"Øster Assels"]
[null,null,null,null,null,null,null,null,null,null,null,null,null,null,null,null,null,null,null,8000,"Århus C"]
[null,null,null,null,null,null,null,null,null,null,null,null,null,null,null,null,null,null,null,8100,"Århus C"]
[null,null,null,null,null,null,null,null,null,null,null,null,null,null,null,null,null,null,null,8200,"Århus N"]
[null,null,null,null,null,null,null,null,null,null,null,null,null,null,null,null,null,null,null,8210,"Århus V"]
[null,null,null,null,null,null,null,null,null,null,null,null,null,null,null,null,null,null,null,8220,"Brabrand"]
[null,null,null,null,null,null,null,null,null,null,null,null,null,null,null,null,null,null,null,8230,"Åbyhøj"]
[null,null,null,null,null,null,null,null,null,null,null,null,null,null,null,null,null,null,null,8240,"Risskov"]
[null,null,null,null,null,null,null,null,null,null,null,null,null,null,null,null,null,null,null,8250,"Egå"]
[null,null,null,null,null,null,null,null,null,null,null,null,null,null,null,null,null,null,null,8260,"Viby J"]
[null,null,null,null,null,null,null,null,null,null,null,null,null,null,null,null,null,null,null,8270,"Højbjerg"]
[null,null,null,null,null,null,null,null,null,null,null,null,null,null,null,null,null,null,null,8300,"Odder"]
[null,null,null,null,null,null,null,null,null,null,null,null,null,null,null,null,null,null,null,8305,"Samsø"]
[null,null,null,null,null,null,null,null,null,null,null,null,null,null,null,null,null,null,null,8310,"Tranbjerg J"]
[null,null,null,null,null,null,null,null,null,null,null,null,null,null,null,null,null,null,null,8320,"Mårslet"]
[null,null,null,null,null,null,null,null,null,null,null,null,null,null,null,null,null,null,null,8330,"Beder"]
[null,null,null,null,null,null,null,null,null,null,null,null,null,null,null,null,null,null,null,8340,"Malling"]
[null,null,null,null,null,null,null,null,null,null,null,null,null,null,null,null,null,null,null,8350,"Hundslund"]
[null,null,null,null,null,null,null,null,null,null,null,null,null,null,null,null,null,null,null,8355,"Ny Solbjerg"]
[null,null,null,null,null,null,null,null,null,null,null,null,null,null,null,null,null,null,null,8361,"Hasselager"]
[null,null,null,null,null,null,null,null,null,null,null,null,null,null,null,null,null,null,null,8362,"Hørning"]
[null,null,null,null,null,null,null,null,null,null,null,null,null,null,null,null,null,null,null,8370,"Hadsten"]
[null,null,null,null,null,null,null,null,null,null,null,null,null,null,null,null,null,null,null,8380,"Trige"]
[null,null,null,null,null,null,null,null,null,null,null,null,null,null,null,null,null,null,null,8381,"Mundelstrup"]
[null,null,null,null,null,null,null,null,null,null,null,null,null,null,null,null,null,null,null,8382,"Hinnerup"]
[null,null,null,null,null,null,null,null,null,null,null,null,null,null,null,null,null,null,null,8400,"Ebeltoft"]
[null,null,null,null,null,null,null,null,null,null,null,null,null,null,null,null,null,null,null,8410,"Rønde"]
[null,null,null,null,null,null,null,null,null,null,null,null,null,null,null,null,null,null,null,8420,"Knebel"]
[null,null,null,null,null,null,null,null,null,null,null,null,null,null,null,null,null,null,null,8444,"Balle"]
[null,null,null,null,null,null,null,null,null,null,null,null,null,null,null,null,null,null,null,8450,"Hammel"]
[null,null,null,null,null,null,null,null,null,null,null,null,null,null,null,null,null,null,null,8462,"Harlev J"]
[null,null,null,null,null,null,null,null,null,null,null,null,null,null,null,null,null,null,null,8464,"Galten"]
[null,null,null,null,null,null,null,null,null,null,null,null,null,null,null,null,null,null,null,8471,"Sabro"]
[null,null,null,null,null,null,null,null,null,null,null,null,null,null,null,null,null,null,null,8472,"Sporup"]
[null,null,null,null,null,null,null,null,null,null,null,null,null,null,null,null,null,null,null,8500,"Grenaa"]
[null,null,null,null,null,null,null,null,null,null,null,null,null,null,null,null,null,null,null,8520,"Lystrup"]
[null,null,null,null,null,null,null,null,null,null,null,null,null,null,null,null,null,null,null,8530,"Hjortshøj"]
[null,null,null,null,null,null,null,null,null,null,null,null,null,null,null,null,null,null,null,8541,"Skødstrup"]
[null,null,null,null,null,null,null,null,null,null,null,null,null,null,null,null,null,null,null,8543,"Hornslet"]
[null,null,null,null,null,null,null,null,null,null,null,null,null,null,null,null,null,null,null,8544,"Mørke"]
[null,null,null,null,null,null,null,null,null,null,null,null,null,null,null,null,null,null,null,8550,"Ryomgård"]
[null,null,null,null,null,null,null,null,null,null,null,null,null,null,null,null,null,null,null,8560,"Kolind"]
[null,null,null,null,null,null,null,null,null,null,null,null,null,null,null,null,null,null,null,8570,"Trustrup"]
[null,null,null,null,null,null,null,null,null,null,null,null,null,null,null,null,null,null,null,8581,"Nimtofte"]
[null,null,null,null,null,null,null,null,null,null,null,null,null,null,null,null,null,null,null,8585,"Glesborg"]
[null,null,null,null,null,null,null,null,null,null,null,null,null,null,null,null,null,null,null,8586,"Ørum Djurs"]
[null,null,null,null,null,null,null,null,null,null,null,null,null,null,null,null,null,null,null,8592,"Anholt"]
[null,null,null,null,null,null,null,null,null,null,null,null,null,null,null,null,null,null,null,8600,"Silkeborg"]
[null,null,null,null,null,null,null,null,null,null,null,null,null,null,null,null,null,null,null,8620,"Kjellerup"]
[null,null,null,null,null,null,null,null,null,null,null,null,null,null,null,null,null,null,null,8632,"Lemming"]
[null,null,null,null,null,null,null,null,null,null,null,null,null,null,null,null,null,null,null,8641,"Sorring"]
[null,null,null,null,null,null,null,null,null,null,null,null,null,null,null,null,null,null,null,8643,"Ans By"]
[null,null,null,null,null,null,null,null,null,null,null,null,null,null,null,null,null,null,null,8653,"Them"]
[null,null,null,null,null,null,null,null,null,null,null,null,null,null,null,null,null,null,null,8654,"Bryrup"]
[null,null,null,null,null,null,null,null,null,null,null,null,null,null,null,null,null,null,null,8660,"Skanderborg"]
[null,null,null,null,null,null,null,null,null,null,null,null,null,null,null,null,null,null,null,8670,"Låsby"]
[null,null,null,null,null,null,null,null,null,null,null,null,null,null,null,null,null,null,null,8680,"Ry"]
[null,null,null,null,null,null,null,null,null,null,null,null,null,null,null,null,null,null,null,8700,"Horsens"]
[null,null,null,null,null,null,null,null,null,null,null,null,null,null,null,null,null,null,null,8721,"Daugård"]
[null,null,null,null,null,null,null,null,null,null,null,null,null,null,null,null,null,null,null,8722,"Hedensted"]
[null,null,null,null,null,null,null,null,null,null,null,null,null,null,null,null,null,null,null,8723,"Løsning"]
[null,null,null,null,null,null,null,null,null,null,null,null,null,null,null,null,null,null,null,8732,"Hovedgård"]
[null,null,null,null,null,null,null,null,null,null,null,null,null,null,null,null,null,null,null,8740,"Brædstrup"]
[null,null,null,null,null,null,null,null,null,null,null,null,null,null,null,null,null,null,null,8751,"Gedved"]
[null,null,null,null,null,null,null,null,null,null,null,null,null,null,null,null,null,null,null,8752,"Østbirk"]
[null,null,null,null,null,null,null,null,null,null,null,null,null,null,null,null,null,null,null,8762,"Flemming"]
[null,null,null,null,null,null,null,null,null,null,null,null,null,null,null,null,null,null,null,8763,"Rask Mølle"]
[null,null,null,null,null,null,null,null,null,null,null,null,null,null,null,null,null,null,null,8765,"Klovborg"]
[null,null,null,null,null,null,null,null,null,null,null,null,null,null,null,null,null,null,null,8766,"Nørre Snede"]
[null,null,null,null,null,null,null,null,null,null,null,null,null,null,null,null,null,null,null,8781,"Stenderup"]
[null,null,null,null,null,null,null,null,null,null,null,null,null,null,null,null,null,null,null,8783,"Hornsyld"]
[null,null,null,null,null,null,null,null,null,null,null,null,null,null,null,null,null,null,null,8800,"Viborg"]
[null,null,null,null,null,null,null,null,null,null,null,null,null,null,null,null,null,null,null,8830,"Tjele"]
[null,null,null,null,null,null,null,null,null,null,null,null,null,null,null,null,null,null,null,8831,"Løgstrup"]
[null,null,null,null,null,null,null,null,null,null,null,null,null,null,null,null,null,null,null,8832,"Skals"]
[null,null,null,null,null,null,null,null,null,null,null,null,null,null,null,null,null,null,null,8840,"Rødkærsbro"]
[null,null,null,null,null,null,null,null,null,null,null,null,null,null,null,null,null,null,null,8850,"Bjerringbro"]
[null,null,null,null,null,null,null,null,null,null,null,null,null,null,null,null,null,null,null,8860,"Ulstrup"]
[null,null,null,null,null,null,null,null,null,null,null,null,null,null,null,null,null,null,null,8870,"Langå"]
[null,null,null,null,null,null,null,null,null,null,null,null,null,null,null,null,null,null,null,8881,"Thorsø"]
[null,null,null,null,null,null,null,null,null,null,null,null,null,null,null,null,null,null,null,8882,"Fårvang"]
[null,null,null,null,null,null,null,null,null,null,null,null,null,null,null,null,null,null,null,8883,"Gjern"]
[null,null,null,null,null,null,null,null,null,null,null,null,null,null,null,null,null,null,null,8900,"Randers"]
[null,null,null,null,null,null,null,null,null,null,null,null,null,null,null,null,null,null,null,8950,"Ørsted"]
[null,null,null,null,null,null,null,null,null,null,null,null,null,null,null,null,null,null,null,8961,"Allingåbro"]
[null,null,null,null,null,null,null,null,null,null,null,null,null,null,null,null,null,null,null,8963,"Auning"]
[null,null,null,null,null,null,null,null,null,null,null,null,null,null,null,null,null,null,null,8970,"Havndal"]
[null,null,null,null,null,null,null,null,null,null,null,null,null,null,null,null,null,null,null,8981,"Spentrup"]
[null,null,null,null,null,null,null,null,null,null,null,null,null,null,null,null,null,null,null,8983,"Gjerlev J"]
[null,null,null,null,null,null,null,null,null,null,null,null,null,null,null,null,null,null,null,8990,"Fårup"]
[null,null,null,null,null,null,null,null,null,null,null,null,null,null,null,null,null,null,null,9000,"Aalborg"]
[null,null,null,null,null,null,null,null,null,null,null,null,null,null,null,null,null,null,null,9100,"Aalborg"]
[null,null,null,null,null,null,null,null,null,null,null,null,null,null,null,null,null,null,null,9200,"Aalborg SV"]
[null,null,null,null,null,null,null,null,null,null,null,null,null,null,null,null,null,null,null,9210,"Aalborg SØ"]
[null,null,null,null,null,null,null,null,null,null,null,null,null,null,null,null,null,null,null,9220,"Aalborg Ø"]
[null,null,null,null,null,null,null,null,null,null,null,null,null,null,null,null,null,null,null,9230,"Svenstrup J"]
[null,null,null,null,null,null,null,null,null,null,null,null,null,null,null,null,null,null,null,9240,"Nibe"]
[null,null,null,null,null,null,null,null,null,null,null,null,null,null,null,null,null,null,null,9260,"Gistrup"]
[null,null,null,null,null,null,null,null,null,null,null,null,null,null,null,null,null,null,null,9270,"Klarup"]
[null,null,null,null,null,null,null,null,null,null,null,null,null,null,null,null,null,null,null,9280,"Storvorde"]
[null,null,null,null,null,null,null,null,null,null,null,null,null,null,null,null,null,null,null,9293,"Kongerslev"]
[null,null,null,null,null,null,null,null,null,null,null,null,null,null,null,null,null,null,null,9300,"Sæby"]
[null,null,null,null,null,null,null,null,null,null,null,null,null,null,null,null,null,null,null,9310,"Vodskov"]
[null,null,null,null,null,null,null,null,null,null,null,null,null,null,null,null,null,null,null,9320,"Hjallerup"]
[null,null,null,null,null,null,null,null,null,null,null,null,null,null,null,null,null,null,null,9330,"Dronninglund"]
[null,null,null,null,null,null,null,null,null,null,null,null,null,null,null,null,null,null,null,9340,"Asaa"]
[null,null,null,null,null,null,null,null,null,null,null,null,null,null,null,null,null,null,null,9352,"Dybvad"]
[null,null,null,null,null,null,null,null,null,null,null,null,null,null,null,null,null,null,null,9362,"Gandrup"]
[null,null,null,null,null,null,null,null,null,null,null,null,null,null,null,null,null,null,null,9370,"Hals"]
[null,null,null,null,null,null,null,null,null,null,null,null,null,null,null,null,null,null,null,9380,"Vestbjerg"]
[null,null,null,null,null,null,null,null,null,null,null,null,null,null,null,null,null,null,null,9382,"Tylstrup"]
[null,null,null,null,null,null,null,null,null,null,null,null,null,null,null,null,null,null,null,9400,"Nørresundby"]
[null,null,null,null,null,null,null,null,null,null,null,null,null,null,null,null,null,null,null,9430,"Vadum"]
[null,null,null,null,null,null,null,null,null,null,null,null,null,null,null,null,null,null,null,9440,"Aabybro"]
[null,null,null,null,null,null,null,null,null,null,null,null,null,null,null,null,null,null,null,9460,"Brovst"]
[null,null,null,null,null,null,null,null,null,null,null,null,null,null,null,null,null,null,null,9480,"Løkken"]
[null,null,null,null,null,null,null,null,null,null,null,null,null,null,null,null,null,null,null,9490,"Pandrup"]
[null,null,null,null,null,null,null,null,null,null,null,null,null,null,null,null,null,null,null,9492,"Blokhus"]
[null,null,null,null,null,null,null,null,null,null,null,null,null,null,null,null,null,null,null,9493,"Saltum"]
[null,null,null,null,null,null,null,null,null,null,null,null,null,null,null,null,null,null,null,9500,"Hobro"]
[null,null,null,null,null,null,null,null,null,null,null,null,null,null,null,null,null,null,null,9510,"Arden"]
[null,null,null,null,null,null,null,null,null,null,null,null,null,null,null,null,null,null,null,9520,"Skørping"]
[null,null,null,null,null,null,null,null,null,null,null,null,null,null,null,null,null,null,null,9530,"Støvring"]
[null,null,null,null,null,null,null,null,null,null,null,null,null,null,null,null,null,null,null,9541,"Suldrup"]
[null,null,null,null,null,null,null,null,null,null,null,null,null,null,null,null,null,null,null,9550,"Mariager"]
[null,null,null,null,null,null,null,null,null,null,null,null,null,null,null,null,null,null,null,9560,"Hadsund"]
[null,null,null,null,null,null,null,null,null,null,null,null,null,null,null,null,null,null,null,9574,"Bælum"]
[null,null,null,null,null,null,null,null,null,null,null,null,null,null,null,null,null,null,null,9575,"Terndrup"]
[null,null,null,null,null,null,null,null,null,null,null,null,null,null,null,null,null,null,null,9600,"Aars"]
[null,null,null,null,null,null,null,null,null,null,null,null,null,null,null,null,null,null,null,9610,"Nørager"]
[null,null,null,null,null,null,null,null,null,null,null,null,null,null,null,null,null,null,null,9620,"Aalestrup"]
[null,null,null,null,null,null,null,null,null,null,null,null,null,null,null,null,null,null,null,9631,"Gedsted"]
[null,null,null,null,null,null,null,null,null,null,null,null,null,null,null,null,null,null,null,9632,"Møldrup"]
[null,null,null,null,null,null,null,null,null,null,null,null,null,null,null,null,null,null,null,9640,"Farsø"]
[null,null,null,null,null,null,null,null,null,null,null,null,null,null,null,null,null,null,null,9670,"Løgstør"]
[null,null,null,null,null,null,null,null,null,null,null,null,null,null,null,null,null,null,null,9681,"Ranum"]
[null,null,null,null,null,null,null,null,null,null,null,null,null,null,null,null,null,null,null,9690,"Fjerritslev"]
[null,null,null,null,null,null,null,null,null,null,null,null,null,null,null,null,null,null,null,9700,"Brønderslev"]
[null,null,null,null,null,null,null,null,null,null,null,null,null,null,null,null,null,null,null,9740,"Jerslev J"]
[null,null,null,null,null,null,null,null,null,null,null,null,null,null,null,null,null,null,null,9750,"Øster Vrå"]
[null,null,null,null,null,null,null,null,null,null,null,null,null,null,null,null,null,null,null,9760,"Vrå"]
[null,null,null,null,null,null,null,null,null,null,null,null,null,null,null,null,null,null,null,9800,"Hjørring"]
[null,null,null,null,null,null,null,null,null,null,null,null,null,null,null,null,null,null,null,9830,"Tårs"]
[null,null,null,null,null,null,null,null,null,null,null,null,null,null,null,null,null,null,null,9850,"Hirtshals"]
[null,null,null,null,null,null,null,null,null,null,null,null,null,null,null,null,null,null,null,9870,"Sindal"]
[null,null,null,null,null,null,null,null,null,null,null,null,null,null,null,null,null,null,null,9881,"Bindslev"]
[null,null,null,null,null,null,null,null,null,null,null,null,null,null,null,null,null,null,null,9900,"Frederikshavn"]
[null,null,null,null,null,null,null,null,null,null,null,null,null,null,null,null,null,null,null,9940,"Byrum"]
[null,null,null,null,null,null,null,null,null,null,null,null,null,null,null,null,null,null,null,9950,"Vesterø Havn"]
[null,null,null,null,null,null,null,null,null,null,null,null,null,null,null,null,null,null,null,9960,"Østerby Havn"]
[null,null,null,null,null,null,null,null,null,null,null,null,null,null,null,null,null,null,null,9970,"Strandby"]
[null,null,null,null,null,null,null,null,null,null,null,null,null,null,null,null,null,null,null,9981,"Jerup"]
[null,null,null,null,null,null,null,null,null,null,null,null,null,null,null,null,null,null,null,9982,"Ålbæk"]
[null,null,null,null,null,null,null,null,null,null,null,null,null,null,null,null,null,null,null,9990,"Skagen"]

{"sheet":"Ark1","index":1,"n_rows":0,"n_cols":0,"rows_kept":0,"cut":false,"hidden":false,"merged":[]}